Cogmind - Beta 16 @@@ ROGUE MODE // 2025.11.03 @ 01:23:55 Player: Naughtyusername Result: Destroyed by Striker with Plasma Lance Performance ------------- Evolutions (7) 3500 Regions Visited (30) 6000 Robots Destroyed (704) 3520 Value Destroyed (31674) 31674 Prototype IDs (84) 1680 Alien Tech Used (4) 800 Bonus (20706) 20706 TOTAL SCORE: 67880 Bonus ------- High Alert Combat Kills 8930 Follower Combat Kills 3250 Entered Garrisons 800 Used RIF Installer 2000 Network Hubs Disabled 600 Met Zhirov 300 Built Enhanced Grunts 300 A7 Reached Mainframe 300 Met R17 at Cetus 500 Found Hidden Lab 3000 Used Core Reset Matrix 3000 Met R17 at Research 2000 Friendly Fire -4274 Cogmind --------- Core Integrity 0/1300 Matter 112/300 Energy 350/350 System Corruption 0% Temperature Critical (591) Movement Core (1900) Ox37 Location -3/Research Parts ------- > --- POWER (2) -------- Reinforced Quantum Reactor > --- PROPULSION (7) --- (None) > --- UTILITY (8) ------ Huge Storage Unit Advanced Signal Interpreter Core Analyzer Experimental Core Analyzer Experimental Weapon Cycler Graphene Brace > --- WEAPON (5) ------- (None) > --- INVENTORY (25) --- Improved Matter Compressor (300) IFF Parser Experimental Weapon Cycler Deep Network Scanner Long-range Tractor Beam Warp Cannon Warp Cannon Gamma Bomb Array Guided Remote Datajack CPS Tube (2) PL-3XN's Ring of Power PL-3XN's Ring of Power Disassembled Obliterator Peak State ------------ > --- POWER ------------ Reinforced Quantum Reactor Reinforced Quantum Reactor > --- PROPULSION ------- Armored Medium Treads Armored Medium Treads Heavy Treads Biometal Medium Treads Improved Heavy Siege Treads > --- UTILITY ---------- Advanced Cryofiber Web Experimental Heat Sink Huge Storage Unit Advanced Signal Interpreter Core Analyzer Experimental Core Analyzer Medium Regenerative Plating Advanced System Restoration Module > --- WEAPON ----------- Hypervelocity Railgun Helical Railgun Helical Railgun Helical Railgun Helical Railgun > --- INVENTORY -------- Improved Matter Compressor IFF Parser Experimental Weapon Cycler Experimental Weapon Cycler Medium Regenerative Plating Graphene Brace Deep Network Scanner Long-range Tractor Beam Bomb Drone Bay Transdimensional Reconstructor EMDS Heavy Neutron Cannon Warp Cannon Warp Cannon Gamma Bomb Array Hellfire Missile Launcher Guided Remote Datajack CPS Tube PL-3XN's Ring of Power PL-3XN's Ring of Power Disassembled Obliterator [Rating: 177] Favorites ----------- Power Antimatter Reactor Engine Cooled Ion Engine Power Core Fission Core Reactor Antimatter Reactor Propulsion Centrium Heavy Treads Treads Centrium Heavy Treads Leg Carbon-fiber Leg Wheel Compact Wheel Flight Unit Cesium-ion Thruster Utility Huge Storage Unit Device Advanced Cooling System Storage Huge Storage Unit Processor Experimental Targeting Computer Hackware Relay Coupler [NC] Protection Medium Regenerative Plating Weapon Advanced KE Penetrator Energy Gun Improved Heavy Laser Energy Cannon Phase Cannon Ballistic Gun Advanced KE Penetrator Ballistic Cannon Assault Cannon Launcher Missile Launcher Special Weapon Improved Remote Datajack Impact Weapon Heavy Flail Slashing Weapon Molecular Scythe Build | -11 -10 -10 -9 -9 -8 -8 -8 -8 -8 -6 -6 -6 -6 -6 -6 -6 -6 -5 -5 -5 -5 -5 -5 -5 -5 -4 -4 -4 -4 -3 ------- Run | Yrd Mat Min Mat Min Mat Sto Gar Rec Scr Fac Was Fac Ext Cet Arc Hub Gar Fac Gar Fac Gar Fac Upp Upp Zhi Pro Fac Arm Lab Res Slots Evolved 14 | . . . 2 . 2 . . . . 4 . . . . . . . 2 . . . . . . . . 2 . . 2 Power 1 | . . . . . . . . . . 1 . . . . . . . . . . . . . . . . . . . . Propulsion 4 | . . . . . 1 . . . . 1 . . . . . . . 2 . . . . . . . . . . . . Utility 6 | . . . 1 . . . . . . 2 . . . . . . . . . . . . . . . . 2 . . 1 Weapon 3 | . . . 1 . 1 . . . . . . . . . . . . . . . . . . . . . . . . 1 Parts Attached 379 | 7 12 5 35 3 20 14 9 1 9 36 9 1 11 11 . 11 4 10 1 6 13 27 3 4 2 1 33 45 1 35 Power 44 | 1 1 . 3 . 2 . 1 . . 7 3 . 4 1 . 2 1 1 1 . 3 3 . . . . 2 6 1 1 Engine 12 | 1 1 . 2 . 2 . 1 . . 3 . . 1 . . 1 . . . . . . . . . . . . . . Core 12 | . . . 1 . . . . . . 4 . . 2 . . . . 1 . . 3 1 . . . . . . . . Reactor 20 | . . . . . . . . . . . 3 . 1 1 . 1 1 . 1 . . 2 . . . . 2 6 1 1 Propulsion 80 | 2 4 1 10 . 2 2 4 1 3 7 3 . . 3 . . . 2 . . . 3 3 1 . . 9 16 . 4 Treads 62 | 2 2 1 7 . 2 2 4 1 2 3 3 . . 3 . . . 2 . . . 3 2 . . . 6 13 . 4 Leg 3 | . . . . . . . . . . . . . . . . . . . . . . . 1 1 . . . 1 . . Wheel 14 | . 2 . 3 . . . . . . 4 . . . . . . . . . . . . . . . . 3 2 . . Hover . | . . . . . . . . . . . . . . . . . . . . . . . . . . . . . . . Flight 1 | . . . . . . . . . 1 . . . . . . . . . . . . . . . . . . . . . Utility 130 | 2 4 1 8 2 5 5 3 . 4 11 2 1 4 5 . 9 2 4 . 3 4 10 . 1 1 1 8 12 . 18 Device 69 | 1 2 . 4 1 1 . . . 2 7 2 1 2 3 . 5 1 2 . 1 1 7 . 1 . 1 4 9 . 11 Storage 13 | 1 2 . 1 . . 2 1 . . . . . . . . . 1 2 . . . . . . 1 . . . . 2 Processor 18 | . . . . . . . 1 . 2 2 . . . . . 2 . . . 1 1 2 . . . . 2 1 . 4 Hackware 7 | . . . . . . . . . . . . . . . . . . . . 1 2 1 . . . . 2 1 . . Protection 23 | . . 1 3 1 4 3 1 . . 2 . . 2 2 . 2 . . . . . . . . . . . 1 . 1 Artifact . | . . . . . . . . . . . . . . . . . . . . . . . . . . . . . . . Weapon 125 | 2 3 3 14 1 11 7 1 . 2 11 1 . 3 2 . . 1 3 . 3 6 11 . 2 1 . 14 11 . 12 Energy Gun 17 | 2 . 1 3 . . 2 1 . 1 3 1 . . . . . . . . . . . . . . . 1 2 . . Energy Cannon 17 | . 1 . 1 . . . . . . 2 . . . . . . . 1 . 1 . 4 . 1 . . 3 . . 3 Ballistic Gun 60 | . 1 . 10 1 6 4 . . . 2 . . 2 1 . . 1 2 . . 5 2 . . . . 9 8 . 6 Ballistic Cannon 9 | . . . . . 4 . . . . . . . . . . . . . . . . 2 . . 1 . . 1 . 1 Launcher 10 | . 1 1 . . 1 . . . . 3 . . . . . . . . . 1 . 1 . . . . 1 . . 1 Special Weapon 8 | . . 1 . . . 1 . . . . . . 1 1 . . . . . 1 1 . . 1 . . . . . 1 Impact Weapon 2 | . . . . . . . . . 1 . . . . . . . . . . . . 1 . . . . . . . . Slashing Weapon 2 | . . . . . . . . . . 1 . . . . . . . . . . . 1 . . . . . . . . Piercing Weapon . | . . . . . . . . . . . . . . . . . . . . . . . . . . . . . . . Special Melee Weapon . | . . . . . . . . . . . . . . . . . . . . . . . . . . . . . . . Unidentified Prototypes 51 | . . . 2 1 . 3 . . . 11 . . . 4 . 4 . 1 . 1 . 5 . . 2 . 2 5 1 9 Corrupted Parts 4 | . . . . . . . . . . . . . . 1 . . . 2 1 . . . . . . . . . . . System Corruption 12 | . . . . . . . . . . . . . . 2 . . . 8 2 . . . . . . . . . . . Parts Lost 110 | . 8 . 9 . 3 1 2 . . 11 . . 3 1 . 4 1 3 . 2 6 3 1 5 . . 6 19 . 22 Power 16 | . 2 . 2 . 1 . . . . 2 . . 2 . . . . 1 . . 1 . . . . . 1 3 . 1 Propulsion 36 | . 3 . 2 . 1 . 2 . . 5 . . . 1 . . . . . . 1 1 1 2 . . 4 7 . 6 Utility 26 | . 1 . 3 . 1 . . . . 2 . . 1 . . 4 . . . 1 2 1 . . . . 1 2 . 7 Weapon 32 | . 2 . 2 . . 1 . . . 2 . . . . . . 1 2 . 1 2 1 . 3 . . . 7 . 8 Highest Loss Streak 20 | . 5 . 2 . 2 1 1 . . 4 . . 2 1 . 2 1 1 . 2 3 1 1 3 . . 1 11 . 20 To Critical Strikes 1 | . . . . . . . . . . . . . . 1 . . . . . . . . . . . . . . . . Average Backups 20 | 2 9 18 18 18 18 20 22 23 23 22 22 22 21 21 21 20 19 20 21 20 20 21 21 20 21 20 20 20 16 18 Power . | . . . . 2 1 1 1 1 1 . . 1 . 1 1 1 1 1 1 1 . . . . . 1 1 . . . Propulsion 2 | . 1 7 6 4 3 3 4 4 3 1 . 1 1 1 2 2 2 . 1 1 1 . . . . . . . . . Utility 9 | . 3 7 4 2 4 10 10 11 10 10 11 11 11 12 10 9 8 12 14 13 13 13 13 13 12 12 10 9 9 9 Weapon 5 | 1 3 4 6 9 8 4 6 6 6 5 7 7 6 4 5 5 5 4 3 3 4 5 5 4 5 3 4 5 3 5 Tool/Special . | . . . . . . . . . . . . . . . . . . . . . . . . . . . . . . . Unused Backups 76 | . 1 1 11 1 9 . 3 . 2 11 2 . . 8 . 2 . 3 1 . 5 1 . . 3 . 2 4 1 5 Power 2 | . . . . . . . . . . . 1 . . 1 . . . . . . . . . . . . . . . . Propulsion 11 | . 1 1 4 1 . . . . 1 . . . . . . . . . . . 3 . . . . . . . . . Utility 32 | . . . 4 . . . 1 . 1 4 1 . . 6 . 2 . 3 . . 2 1 . . 2 . . 2 1 2 Weapon 27 | . . . 3 . 9 . 2 . . 5 . . . 1 . . . . . . . . . . 1 . 2 2 . 2 Tool/Special 4 | . . . . . . . . . . 2 . . . . . . . . 1 . . . . . . . . . . 1 Average Slot Usage (%) 92 | . 93 100 98 100 99 99 100 100 99 98 89 86 84 85 86 86 86 80 82 77 81 86 87 92 65 87 89 92 92 91 Engine 4 | . 10 14 9 11 8 9 9 9 9 11 . . 3 . . 1 . . . . . . . . . . . . . . Core 1 | . . . 1 . . . . . . . 1 . 2 9 6 2 . . 5 5 10 5 . . . . . . . . Reactor 4 | . . . . . . . . . . . 11 13 5 2 6 7 13 10 5 5 . 5 11 11 11 11 9 9 6 9 Treads 21 | . 20 23 13 22 26 27 27 27 27 23 10 13 13 12 13 13 13 17 17 17 17 21 22 25 17 17 18 24 31 24 Wheel 1 | . 5 4 8 . . . . . . 1 5 . . . . . . . . . . . . . . . 2 . . . Device 8 | . 13 4 11 11 8 9 6 . . 12 12 13 6 6 6 6 6 5 5 4 4 5 11 11 10 11 9 7 15 16 Storage 7 | . 14 14 10 11 9 9 9 9 9 6 6 6 6 6 6 6 6 5 5 5 5 5 5 5 5 5 5 5 5 4 Processor 6 | . . . . . . . 2 9 9 6 13 13 10 6 6 6 13 11 11 11 10 6 5 5 5 5 12 18 10 10 Protection 7 | . . 9 11 11 9 8 9 9 8 5 . . 8 13 13 12 6 4 5 2 4 4 4 4 5 5 7 4 2 3 Energy Gun 6 | . 20 5 11 . . 6 11 18 18 13 26 25 11 . . . . . . . . . . . . . 1 . . . Energy Cannon 2 | . 3 13 2 . . . . . . . . . 6 4 . . . . . 1 3 6 17 14 . 4 4 . . 2 Ballistic Gun 16 | . 3 8 18 33 23 28 24 18 18 11 . . 8 21 26 26 25 21 23 14 17 12 . 2 . 5 8 19 15 17 Ballistic Cannon 1 | . . . . . 12 . . . . . . . . . . . . . . . . 1 4 4 . 11 5 . 5 . Peak Build Rating 177 | 7 10 16 23 29 37 42 50 48 50 79 102 102 98 124 122 136 127 145 141 141 136 123 120 110 108 110 132 147 148 177 Average Rating 82 | 6 7 12 21 22 34 40 44 48 49 61 97 101 93 106 122 123 126 140 139 130 128 118 103 104 84 107 121 130 138 169 On Entrance 85 | . 7 10 16 21 23 37 42 48 48 50 78 102 97 94 122 122 126 126 139 141 131 121 118 104 104 108 110 124 137 148 Avg Prop Armor Cover (%) 7 | . 13 13 7 . . . . . . 7 12 . . . . . . . . . . 7 . 2 3 2 8 12 4 . Naked Turns . | . . . . . . . . . . . . . . . . . . . . . . . . . . . . . . . Heaviest Build 194 | 13 48 51 66 64 80 111 118 117 117 134 146 146 144 146 145 152 154 151 151 155 158 151 152 153 146 150 170 172 174 194 Greatest Support 240 | 40 40 40 46 46 69 66 72 72 72 90 140 140 140 160 160 160 160 240 240 240 240 240 210 176 130 130 187 192 189 234 Greatest Overweight (x) 11 | . 2 2 6 1 1 1 1 1 1 11 4 1 1 . . . . . . . . . 1 1 1 1 9 5 1 1 Average Overweight (x) . | . . 1 3 1 . . 1 1 1 1 1 . . . . . . . . . . . . . . 1 1 . . . Largest Inventory Capacity 25 | 8 20 20 20 20 20 25 25 25 25 25 25 25 25 25 25 25 25 25 25 25 25 25 25 25 25 25 25 25 25 25 Average Capacity 23 | 7 13 20 19 20 20 24 25 25 25 25 25 25 25 25 25 25 25 25 25 25 25 25 25 25 25 25 25 25 25 25 Most Carried 25 | 3 16 20 20 20 20 25 25 25 25 25 25 25 25 25 25 25 25 25 25 25 25 25 25 25 25 25 25 25 25 25 Average Carried 22 | 2 9 18 19 19 19 22 24 25 24 24 24 24 24 24 25 24 24 24 25 24 24 24 24 23 24 23 24 24 23 24 Final Capacity 25 | 8 20 20 20 20 20 25 25 25 25 25 25 25 25 25 25 25 25 25 25 25 25 25 25 25 25 25 25 25 25 25 Final Carried 25 | 3 16 20 19 20 20 25 25 25 25 25 25 25 25 25 25 24 25 25 25 25 24 24 24 23 23 25 25 24 25 14 Class Distribution -------------------- 24% | Scavenger-Tank 23% | Tank 22% | Scavenger-Gunner 14% | Gunner 6% | Mutant 5% | Commander-Tank Dominant Class ---------------- Mutant | -10/Materials Mutant | -10/Mines Tank | -9/Materials Tank | -9/Mines Tank | -8/Materials Tank | -8/Storage Tank | -8/Garrison Gunner | -8/Recycling Gunner | -8/Scraptown Gunner | -6/Factory Scavenger-Gunner | -6/Waste Scavenger-Gunner | -6/Factory Commander-Tank | -6/Extension Commander-Tank | -6/Cetus Commander-Tank | -6/Archives Scavenger-Tank | -6/Hub_04(d) Scavenger-Gunner | -6/Garrison Scavenger-Gunner | -5/Factory Scavenger-Gunner | -5/Garrison Scavenger-Gunner | -5/Factory Scavenger-Gunner | -5/Garrison Scavenger-Tank | -5/Factory Scavenger-Tank | -5/Upper Caves Scavenger-Tank | -5/Upper Caves Scavenger-Mutant | -5/Zhirov Scavenger-Tank | -4/Proximity Caves Scavenger-Tank | -4/Factory Scavenger-Gunner | -4/Armory Scavenger-Gunner | -4/Lab Scavenger-Tank | -3/Research Resources | -11 -10 -10 -9 -9 -8 -8 -8 -8 -8 -6 -6 -6 -6 -6 -6 -6 -6 -5 -5 -5 -5 -5 -5 -5 -5 -4 -4 -4 -4 -3 ----------- Run | Yrd Mat Min Mat Min Mat Sto Gar Rec Scr Fac Was Fac Ext Cet Arc Hub Gar Fac Gar Fac Gar Fac Upp Upp Zhi Pro Fac Arm Lab Res Matter Collected 26209 | 270 133 214 1190 157 1769 1229 692 8 176 1124 467 . 546 460 121 1202 656 652 559 304 1328 1041 418 448 250 55 2050 5487 80 3123 Remotely 5769 | . . . . . . . . . . . . . . . . . . 298 . . . 475 27 32 . . 299 2992 . 1646 Salvage Created 35370 | 157 728 140 2764 154 2427 2100 1077 170 . 2273 900 121 1587 521 75 1968 1119 1166 1289 1014 1310 1177 532 863 . . 2891 4687 . 2160 Parts 1689 | 9 34 11 176 14 137 109 62 5 . 111 7 5 60 37 5 110 59 44 71 32 64 49 21 23 . . 118 232 . 84 Haulers Intercepted 30 | . 2 . 6 . 6 6 . . . 2 . . . . . 1 . 1 . 1 . 1 . . . . 2 . . 2 Recyclers Shooed 14 | 1 . . 5 . . . . 2 . . . . . . . 1 . 1 . . . 1 . . . . 3 . . . Parts Field Recycled . | . . . . . . . . . . . . . . . . . . . . . . . . . . . . . . . Retrieved Matter . | . . . . . . . . . . . . . . . . . . . . . . . . . . . . . . . Parts Self-Destructed 34 | . . . . . . . . . . . . . . . . . . . . . . . 24 10 . . . . . . Prevented . | . . . . . . . . . . . . . . . . . . . . . . . . . . . . . . . Parts Restored . | . . . . . . . . . . . . . . . . . . . . . . . . . . . . . . . Kills | -11 -10 -10 -9 -9 -8 -8 -8 -8 -8 -6 -6 -6 -6 -6 -6 -6 -6 -5 -5 -5 -5 -5 -5 -5 -5 -4 -4 -4 -4 -3 ------- Run | Yrd Mat Min Mat Min Mat Sto Gar Rec Scr Fac Was Fac Ext Cet Arc Hub Gar Fac Gar Fac Gar Fac Upp Upp Zhi Pro Fac Arm Lab Res Combat Hostiles Destroyed 562 | . 15 9 54 6 41 31 29 2 . 35 1 2 24 3 1 26 20 16 28 14 29 17 13 16 . . 32 64 . 34 Guns 397 | . 10 1 34 6 19 30 29 2 . 23 1 1 18 2 1 26 20 14 28 7 19 7 . . . . 19 60 . 20 Cannons 75 | . . . 5 . 19 . . . . . . 1 5 . . . . . . 3 3 9 9 11 . . 6 3 . 1 AOE 73 | . 2 8 15 . 3 1 . . . 11 . . . . . . . . . 3 5 . 4 4 . . 5 1 . 11 Classes Destroyed 28 | 3 4 1 4 . 4 . 3 . . 2 1 . . . . 1 1 . . . 1 . . 1 . . . 1 . 1 Worker 26 | 1 1 . 7 . 3 1 . . . 6 . . . . . 1 . 1 . . . . . . . . 4 . . 1 Builder 25 | . . . 3 . 6 1 . . . 8 . . . . . 1 . 2 . 1 . 1 . . . . 2 . . . Tunneler 9 | 2 1 1 2 1 . . . . . . . . . . . . . . . . . . . . . . 1 . . 1 Hauler 30 | . 2 . 6 . 6 6 . . . 2 . . . . . 1 . 1 . 1 . 1 . . . . 2 . . 2 Recycler 24 | 1 2 . 5 . 3 3 . 1 . 3 . . . . . . . 1 . 1 . . . . . . 3 . . 1 Mechanic 4 | . . . . . . . . . . 2 . . . . . . . . . 1 . . . . . . . 1 . . Operator 3 | . . . . . 1 . . . . . . . . . . 2 . . . . . . . . . . . . . . Watcher 18 | . 1 . 3 . 5 1 1 . . 1 . . 2 1 . 1 . . . 1 . . . . . . . 1 . . Swarmer 116 | . 6 3 11 4 4 3 10 1 . 6 . . . . . . 10 4 12 3 11 . 6 4 . . . 8 . 10 Cutter 2 | . . . . . . . 2 . . . . . . . . . . . . . . . . . . . . . . . Saboteur 1 | . . . . . . . . . . . . . . . . 1 . . . . . . . . . . . . . . Grunt 213 | . 9 1 31 . 22 11 11 . . 9 . 2 14 . . 8 5 6 8 8 8 7 3 2 . . 17 23 . 8 Brawler 13 | . . . . . 2 2 . . . . . . 1 . . . . 1 . 2 2 . . . . . . 2 . 1 Duelist 5 | . . . 1 . . 2 . . . . . . . . . 1 . . . . . . 1 . . . . . . . Protector 9 | . . . 2 . 1 . . . . 1 . . . . . 2 1 . . . . . . . . . . 2 . . Sentry 77 | . . . 9 2 9 12 4 2 . 4 . . 7 . 1 6 1 . 3 1 2 2 1 . . . 6 4 . 1 Demolisher 10 | . . . . . . . . . . . . . . . . . 1 . . . . . . . . . 2 2 . 5 Specialist 12 | . . . . . . . 1 . . 4 . . . . . 1 . . . . . . . . . . . 6 . . Hunter 25 | . . . . . 2 1 . . . 5 . . . . . . 2 2 . . . 2 2 . . . 3 2 . 4 Programmer 36 | . . . . . . . . . . 6 . . . . . 3 . 2 5 . 3 6 . . . . 4 7 . . Heavy 3 | . . . . . 1 . . . . . . . . . . . . . . . . . . . . . . 2 . . Behemoth 6 | . . . . . . . 1 . . . . . 2 . . 1 . 1 . . 1 . . . . . . . . . Compactor 1 | . . . . . . . . . . . 1 . . . . . . . . . . . . . . . . . . . Armor Guard 5 | . . . . . . . . . . . . . . . . . . . . . . . . . . . . 5 . . Cetus Guard 3 | . . . . . . . . . . . . . . 3 . . . . . . . . . . . . . . . . Enhanced Grunt 1 | . . . . . . . . . . . . . . . . 1 . . . . . . . . . . . . . . Lightning 3 | . . . . . . . . . . . . . . . . 3 . . . . . . . . . . . . . . Striker 6 | . . . . . . . . . . . . . . . . . . . . . 2 . . . . . . . . 4 Executioner 1 | . . . . . . . . . . . . . . . . . . . . . . . . . . . . . . 1 Alpha 7 1 | . . . . . . . . . . . . . . . . . . . . . . . . . . . . 1 . . Assembled 9 | . . 5 . . . . . . . . . . . . . . . . . . . . . . . . . . . 4 Thug 7 | . . 1 . . . . . . . . . . . 4 . . . . . . . . . 2 . . . . . . Savage 3 | . . . . . . . . . . . . . . . . . . . . . . . . 3 . . . . . . Butcher 4 | . . . . . . . . . . . . . . . . . . . . . . . . 4 . . . . . . Mutant 1 | . . . . . . . . . . . . . . . . . . . . . . . . 1 . . . . . . Best Kill Streak 26 | 1 5 5 12 4 9 5 5 1 . 26 1 2 3 3 1 5 4 5 10 8 19 4 6 4 . . 5 6 . 9 Combat Bots Only 19 | . 4 5 9 4 5 5 5 1 . 9 1 2 3 2 1 5 4 5 10 5 19 4 6 4 . . 4 6 . 9 Max Kills in Single Turn 6 | 1 2 3 3 1 4 2 2 2 . 6 1 1 1 2 1 2 3 3 3 4 5 1 2 3 . . 3 3 . 4 Gunslinging 2 | . . . . . 1 1 1 . . 2 . . . . . 1 1 1 1 . 1 . . . . . . 1 . 1 Exploded 4 | . 2 3 3 . 2 1 . . . 4 . . . . . . . . . 3 3 . 2 3 . . 3 1 . 4 Melee . | . . . . . . . . . . . . . . . . . . . . . . . . . . . . . . . Uniques/NPCs Destroyed 1 | . . . . . . . . . . . . . . 1 . . . . . . . . . . . . . . . . A7 (-6/Cetus) Combat | -11 -10 -10 -9 -9 -8 -8 -8 -8 -8 -6 -6 -6 -6 -6 -6 -6 -6 -5 -5 -5 -5 -5 -5 -5 -5 -4 -4 -4 -4 -3 -------- Run | Yrd Mat Min Mat Min Mat Sto Gar Rec Scr Fac Was Fac Ext Cet Arc Hub Gar Fac Gar Fac Gar Fac Upp Upp Zhi Pro Fac Arm Lab Res Hostile Shots Fired 2883 | . 100 15 199 29 127 88 68 . . 222 . 1 132 12 8 135 65 75 58 48 130 76 51 61 . . 232 657 . 294 Missed 887 | . 23 6 59 10 39 24 17 . . 82 . 1 41 5 2 49 17 17 17 9 29 23 13 11 . . 82 225 . 86 Hits 1996 | . 77 9 140 19 88 64 51 . . 140 . . 91 7 6 86 48 58 41 39 101 53 38 50 . . 150 432 . 208 Melee 76 | . . 2 6 . . 1 2 . . . . . . . . . . 1 . 3 4 . 2 13 . . . . . 42 Projectile 1920 | . 77 7 134 19 88 63 49 . . 140 . . 91 7 6 86 48 57 41 36 97 53 36 37 . . 150 432 . 166 AOE 19 | . . . . . . . 3 . . . . . . . . . 1 1 . . . . . . . . 4 . . 10 Critical Strikes 78 | . 1 . 5 1 3 4 1 . . 4 . . 2 3 . 5 . 1 2 . 2 4 . 9 . . 6 19 . 6 Actively Blocked 15 | . . . . . . . . . . . . . . 1 . 1 . . . . . . . . . . . 11 . 2 Part Disruptions 3 | . . . . . 1 . . . . 1 . . . . . 1 . . . . . . . . . . . . . . Actively Blocked 1 | . . . . . . . . . . . . . . . . 1 . . . . . . . . . . . . . . Damage Taken 38098 | . 881 141 1916 226 1429 994 957 . . 2278 . 86 1091 195 144 1767 861 1626 714 831 2335 1238 666 1190 . . 3048 6426 . 7058 Core 3755 | . 165 21 221 12 117 122 78 . . 83 . . 132 . 23 163 71 142 14 58 276 58 16 95 . . 259 391 . 1238 Absorbed by Shields 2221 | . . . . . . . . . . . . . 9 82 . . . . . . . . . 72 . . 458 990 . 610 Reduced by Siege Mode 125 | . . . . . . . . . . . . . 5 . . . 5 53 . 26 36 . . . . . . . . . Redirected to Shielding 494 | . . . . . . 6 . . . . . . 29 37 . 422 . . . . . . . . . . . . . . Ignored by Resistances 33 | . . . . . . . . . . . . . . . . 33 . . . . . . . . . . . . . . Regen/Repaired (Parts) 5651 | . . . 15 . . . . . . . . . . 17 50 305 155 1696 102 214 385 193 186 262 . . 945 774 171 181 Core Remaining (%) 46 | 100 . 25 . 41 . . . . 42 . . . . . . . 44 . . . . . . . . 34 . . 40 . Volleys Fired 1443 | 15 74 15 125 13 87 86 52 11 . 91 7 5 71 21 4 59 37 32 36 30 61 70 36 30 . 4 106 182 5 78 Largest 5 | 2 2 2 3 3 4 4 4 4 . 4 4 4 4 4 4 4 4 4 4 4 4 4 4 4 . 1 4 4 1 5 Hottest 348 | 100 100 100 160 69 148 140 190 190 . 319 319 335 285 140 140 140 140 140 140 195 196 303 303 316 . 85 348 215 58 284 Shots Fired 4486 | 30 146 25 352 39 346 326 190 17 . 289 28 18 196 78 16 236 117 109 117 64 167 168 70 102 . 7 317 630 6 280 Gun 3631 | 30 133 9 311 39 241 326 190 17 . 261 28 15 138 67 16 236 115 104 117 43 126 66 . 1 . 1 189 577 . 235 Cannon 712 | . 11 9 27 . 98 . . . . 6 . 3 46 10 . . 2 5 . 11 34 90 66 99 . 6 120 30 6 33 Launcher 85 | . 2 4 14 . 7 . . . . 22 . . . . . . . . . 7 6 . 2 2 . . 8 2 . 9 Special 58 | . . 3 . . . . . . . . . . 12 1 . . . . . 3 1 12 2 . . . . 21 . 3 Kinetic 3150 | . 11 9 181 39 339 266 132 4 . 118 . . 58 67 16 236 115 104 117 43 126 82 8 25 . 2 214 597 6 235 Thermal 1180 | 30 133 12 157 . . 60 58 13 . 149 28 18 126 10 . . . . . 7 34 74 58 73 . 5 95 10 . 30 Explosive 67 | . 2 4 14 . 7 . . . . 16 . . . . . . . . . . 6 . 2 2 . . 3 2 . 9 Electromagnetic 34 | . . . . . . . . . . 6 . . . . . . 2 5 . 11 . . . 2 . . 5 . . 3 Robot Hit Streak 30 | 6 11 10 18 19 21 14 21 9 . 21 10 10 21 21 9 23 25 14 10 11 14 13 13 15 . . 17 30 . 22 Robot Miss Streak 8 | 2 5 3 8 2 4 6 4 . . 4 1 1 2 1 1 4 4 2 2 2 3 4 1 2 . . 4 3 . 3 Penetration Max 2 | . . . . . . . . . . 1 . . 1 1 . 1 1 1 1 1 1 1 . . . . 1 2 . 1 Secondary Targets 87 | . 2 . 7 2 2 6 7 . . 4 . . . . . 5 8 7 9 . 2 . . . . . 4 17 . 5 Max Gunslinging Chain 3 | . 1 . 1 1 1 1 2 . . 3 . . . . . 1 2 2 1 . 2 . . . . . 1 2 . 2 Shots Hit Robots 2769 | 18 85 14 206 23 217 194 112 2 . 194 23 7 139 54 11 136 71 82 60 41 91 86 32 68 . . 193 426 . 184 Core Hits 1346 | 5 31 18 111 8 107 68 46 6 . 117 6 4 55 28 3 65 39 34 42 31 51 35 17 25 . . 111 188 . 95 Critical Kills 112 | . . . . . . 3 2 . . . . . 3 2 . 12 6 6 9 1 6 2 2 3 . . 13 38 . 4 Critical Parts Destroyed 154 | . . . 1 . 1 1 1 . . . . . 3 6 . 16 13 11 6 2 5 1 1 5 . . 17 54 . 10 Critical Strikes 344 | 2 9 . 6 . 3 6 7 1 . 4 1 1 10 12 1 31 19 19 15 7 11 5 3 10 . . 35 108 . 18 Burn 32 | 2 9 . 5 . . 2 4 1 . 4 1 1 3 . . . . . . . . . . . . . . . . . Meltdown 8 | . . . . . . . . . . . . . 1 1 . . . . . . 2 1 . 2 . . 1 . . . Destroy 291 | . . . 1 . 1 4 3 . . . . . 6 11 1 31 19 18 15 5 9 2 3 6 . . 31 108 . 17 Blast 8 | . . . . . 2 . . . . . . . . . . . . . . . . 2 . 1 . . 3 . . . Corrupt 5 | . . . . . . . . . . . . . . . . . . 1 . 2 . . . 1 . . . . . 1 Melee Attacks . | . . . . . . . . . . . . . . . . . . . . . . . . . . . . . . . Impact . | . . . . . . . . . . . . . . . . . . . . . . . . . . . . . . . Slashing . | . . . . . . . . . . . . . . . . . . . . . . . . . . . . . . . Piercing . | . . . . . . . . . . . . . . . . . . . . . . . . . . . . . . . Sneak Attacks . | . . . . . . . . . . . . . . . . . . . . . . . . . . . . . . . Combat Hostiles . | . . . . . . . . . . . . . . . . . . . . . . . . . . . . . . . Follow-up Attacks . | . . . . . . . . . . . . . . . . . . . . . . . . . . . . . . . Damage Inflicted 74856 | 228 1266 643 4656 342 4866 4154 2418 139 . 7651 786 236 3857 1877 299 4217 1759 2632 2075 2080 3220 2389 1365 2407 . . 5357 6786 . 7151 Guns 50313 | 228 1038 120 3230 324 2546 4097 2418 105 . 4333 786 183 3104 1719 299 4050 1759 2232 2075 879 2200 951 . . . . 1923 5826 . 3888 Cannons 11792 | . 105 88 298 . 1563 . . . . . . 53 734 158 . . . 260 . 430 437 1363 904 2129 . . 1955 657 . 658 Explosions 12145 | . 123 424 1100 . 665 . . . . 3240 . . . . . 93 . 126 . 771 583 61 461 278 . . 1358 300 . 2562 Melee . | . . . . . . . . . . . . . . . . . . . . . . . . . . . . . . . Ramming 606 | . . 11 28 18 92 57 . 34 . 78 . . 19 . . 74 . 14 . . . 14 . . . . 121 3 . 43 Kinetic 42494 | . 60 120 1608 324 4109 2979 1262 32 . 1382 . . 1335 1719 299 4050 1759 2232 2075 879 2200 1216 80 280 . . 2427 6179 . 3888 Thermal 19223 | 228 1083 88 1920 . . 1118 1156 73 . 3143 786 236 2503 158 . . . 126 . 129 437 1159 824 1808 . . 1451 304 . 493 Explosive 10106 | . 123 424 1100 . 629 . . . . 2407 . . . . . . . . . 489 583 . 461 278 . . 750 300 . 2562 Electromagnetic 2427 | . . . . . 36 . . . . 641 . . . . . 93 . 260 . 583 . . . 41 . . 608 . . 165 Impact . | . . . . . . . . . . . . . . . . . . . . . . . . . . . . . . . Slashing . | . . . . . . . . . . . . . . . . . . . . . . . . . . . . . . . Piercing . | . . . . . . . . . . . . . . . . . . . . . . . . . . . . . . . Highest Corruption 20 | . . . . . 2 2 2 2 . 10 10 10 10 5 5 16 16 13 15 15 19 20 20 20 20 20 3 6 6 . Average Corruption 7 | . . . . . 2 2 2 2 . 5 10 10 3 3 5 7 16 8 13 15 18 19 20 20 20 20 2 3 6 . Corruption Purged 7 | . . . . . . . . . . . . . 7 . . . . . . . . . . . . . . . . . Corruption Blocked . | . . . . . . . . . . . . . . . . . . . . . . . . . . . . . . . Effects 786 | . . . . . 21 29 33 23 . 51 33 21 37 16 4 48 32 15 25 24 59 65 67 43 11 33 15 60 21 . Message Errors 162 | . . . . . 7 5 6 5 . 9 4 2 6 3 1 12 4 4 3 5 11 14 17 12 2 11 6 11 2 . Matter Fused 177 | . . . . . 4 7 6 6 . 11 8 2 10 7 . 11 6 3 7 4 17 9 16 7 2 7 6 18 3 . Heat Flow Errors 112 | . . . . . 3 7 7 2 . 6 7 3 5 2 1 7 4 2 2 5 8 7 9 6 1 4 1 8 5 . Energy Discharges 83 | . . . . . 1 1 3 4 . 4 4 4 5 2 . 5 5 . 2 . 6 10 5 7 1 6 . 7 1 . Parts Rejected 5 | . . . . . . . . . . . . . . . . 1 1 . . 2 . . . . . . . 1 . . Parts Fused 8 | . . . . . . 2 1 . . . . . 1 . . 1 . 1 . . . . 2 . . . . . . . Data Loss (minor) 93 | . . . . . 3 4 6 2 . 9 6 1 4 . 1 3 4 1 3 4 6 7 9 1 4 2 1 5 7 . Data Loss (major) 27 | . . . . . 1 2 . 2 . 4 2 . . 1 . 1 . . 1 1 . 4 1 2 1 . . 3 1 . Misfires 43 | . . . . . 2 . 1 . . 4 1 5 . 1 . 3 2 1 2 1 5 5 4 1 . 3 . 1 1 . Alerts 17 | . . . . . . 1 2 2 . 2 . 2 1 . 1 1 1 . . . . . 1 1 . . . 1 1 . Misdirections 2 | . . . . . . . . . . . . 1 . . . . . . . 1 . . . . . . . . . . Weapon Failures 57 | . . . . . . . 1 . . 2 1 1 5 . . 3 5 3 5 1 6 9 3 6 . . 1 5 . . Overload Shots 9 | . . . . . . . . . . 4 . . 4 1 . . . . . . . . . . . . . . . . Effects 1 | . . . . . . . . . . 1 . . . . . . . . . . . . . . . . . . . . Heat Surge 1 | . . . . . . . . . . 1 . . . . . . . . . . . . . . . . . . . . Overflow Damage 719 | . 7 . 20 . 30 4 . . . 98 . . 38 . . 41 . 77 . 51 9 29 33 49 . . 79 33 . 121 Projectiles 274 | . 7 . . . 25 . . . . . . . 38 . . . . 16 . 38 . 29 . 49 . . 39 33 . . Explosions 392 | . . . 20 . 5 . . . . 98 . . . . . . . 61 . 13 9 . 33 . . . 32 . . 121 Melee 53 | . . . . . . 4 . . . . . . . . . 41 . . . . . . . . . . 8 . . . Knockbacks 35 | . . . . 1 11 . . . . 2 . . 2 . . . . . . . . 2 . 5 . . 8 4 . . Impact 7 | . . . . 1 1 . . . . 2 . . 2 . . . . . . . . . . . . . 1 . . . Kinetic 26 | . . . . . 10 . . . . . . . . . . . . . . . . 2 . 5 . . 6 3 . . Secondary 2 | . . . . . . . . . . . . . . . . . . . . . . . . . . . 1 1 . . Self-Inflicted Damage 616 | . 42 . 36 . 35 . . . . 53 . 86 . . . 104 . 51 . . 14 107 . . . . . . . 88 Shots 13 | . 2 . 2 . 1 . . . . 2 . 1 . . . 1 . 1 . . 1 1 . . . . . . . 1 Rammed 55 | . . 3 4 3 11 5 . 5 . 7 . . 3 . . 3 . 1 . . . 1 . . . . 4 1 . 4 Targets Rammed 64 | . . 4 5 4 13 6 . 6 . 7 . . 3 . . 3 . 1 . . . 1 . . . . 5 1 . 5 Kicked . | . . . . . . . . . . . . . . . . . . . . . . . . . . . . . . . Crushed 9 | . . 1 1 1 2 1 . 1 . . . . . . . . . . . . . . . . . . 1 . . 1 Highest Temperature 916 | 234 374 105 236 . 389 394 294 272 . 469 294 332 282 164 228 328 259 179 220 308 263 262 255 384 122 222 304 641 27 916 Average Temperature 90 | 86 79 40 59 . 99 88 96 79 . 80 117 81 120 38 82 47 43 19 31 103 82 77 86 105 77 104 97 102 27 279 Received Heat Transfer 6330 | . 360 45 759 81 567 459 258 . . 318 . . 412 9 18 605 165 189 63 198 171 153 54 156 . . 326 716 . 248 Effects 56 | 3 3 . 2 . 1 . . . . 5 . . 4 . . . . . . . 1 . . . . . 3 14 . 20 Shutdowns 12 | . 1 . . . . . . . . 1 . . . . . . . . . . . . . . . . . 4 . 6 Energy Bleed 6 | . . . . . . . . . . . . . 1 . . . . . . . 1 . . . . . . 3 . 1 Interference 21 | 3 1 . 2 . . . . . . . . . 3 . . . . . . . . . . . . . 3 4 . 5 Matter Decay 3 | . . . . . 1 . . . . . . . . . . . . . . . . . . . . . . 1 . 1 Short Circuit 3 | . . . . . . . . . . . . . . . . . . . . . . . . . . . . 2 . 1 Damage (minor) 3 | . 1 . . . . . . . . . . . . . . . . . . . . . . . . . . . . 2 Damage (major) 5 | . . . . . . . . . . 4 . . . . . . . . . . . . . . . . . . . 1 Damage (core) 3 | . . . . . . . . . . . . . . . . . . . . . . . . . . . . . . 3 Siege Activations 11 | . . . . . . . . . . . . . 4 . . . 1 2 . 1 3 . . . . . . . . . Total Turns 188 | . . . . . . . . . . . . . 100 . . . 9 32 . 18 29 . . . . . . . . . Longest Duration 70 | . . . . . . . . . . . . . 70 . . . 9 16 . 18 20 . . . . . . . . . Martial Activations . | . . . . . . . . . . . . . . . . . . . . . . . . . . . . . . . Shielding Activations . | . . . . . . . . . . . . . . . . . . . . . . . . . . . . . . . Robots Disrupted . | . . . . . . . . . . . . . . . . . . . . . . . . . . . . . . . Combat Hostiles . | . . . . . . . . . . . . . . . . . . . . . . . . . . . . . . . Robots Corrupted 8 | . . . . . . . . . . . . . . . . 1 . 2 . 3 . . . . . . 1 . . 1 Combat Hostiles 5 | . . . . . . . . . . . . . . . . . . 2 . 1 . . . . . . 1 . . 1 Parts Fried 20 | . . . . . 1 . . . . 1 . . . . . 5 . 3 . 4 . . . 1 . . 3 . . 2 Impact Corruptions 5 | . . . . . . 2 . . . . . . . . . 2 . . . . . . . . . . 1 . . . Robots Melted 13 | . 3 . . . . . . . . 2 . . 1 1 . . . . . . 2 1 . 2 . . 1 . . . Combat Hostiles 12 | . 3 . . . . . . . . 1 . . 1 1 . . . . . . 2 1 . 2 . . 1 . . . Parts Melted 66 | 2 15 . 7 . . . 5 . . 13 . . 7 1 . . . . . . 4 5 3 2 . . 2 . . . Heat Transferred 31228 | 814 3774 185 4134 . . 1702 1991 237 . 5507 999 370 3663 222 . . . 100 . 200 650 1263 999 2300 . . 1776 305 . 37 Parts Sabotaged . | . . . . . . . . . . . . . . . . . . . . . . . . . . . . . . . Parts Stolen . | . . . . . . . . . . . . . . . . . . . . . . . . . . . . . . . Parts Stripped . | . . . . . . . . . . . . . . . . . . . . . . . . . . . . . . . Power Chain Reactions 1 | . . . . . . . . . . . . . . . . . . 1 . . . . . . . . . . . . Alert | -11 -10 -10 -9 -9 -8 -8 -8 -8 -8 -6 -6 -6 -6 -6 -6 -6 -6 -5 -5 -5 -5 -5 -5 -5 -5 -4 -4 -4 -4 -3 ------- Run | Yrd Mat Min Mat Min Mat Sto Gar Rec Scr Fac Was Fac Ext Cet Arc Hub Gar Fac Gar Fac Gar Fac Upp Upp Zhi Pro Fac Arm Lab Res Maximum Alert Level 5 | . . . 3 2 3 3 5 3 . 3 1 . 1 1 1 4 5 4 4 4 5 4 . . . . 2 4 . 2 Low Security (%) 38 | 100 100 100 22 64 11 . . . . 81 88 100 84 56 33 9 . . . . . . . . . . 50 1 . 91 Level 1 11 | . . . 15 29 23 15 . . . 4 11 . 15 43 66 6 . . . . . . . . . . 38 21 . 5 Level 2 14 | . . . 30 6 47 32 12 82 . 6 . . . . . 17 . 1 . . . . . . . . 10 10 . 2 Level 3 21 | . . . 31 . 16 52 42 17 . 7 . . . . . 19 10 92 20 62 13 50 . . . . . 62 . . Level 4 10 | . . . . . . . 27 . . . . . . . . 46 76 6 79 37 43 49 . . . . . 4 . . Level 5 2 | . . . . . . . 16 . . . . . . . . . 13 . . . 43 . . . . . . . . . High Security . | . . . . . . . . . . . . . . . . . . . . . . . . . . . . . . . Max Security . | . . . . . . . . . . . . . . . . . . . . . . . . . . . . . . . Sterilizations 1 | . . . 1 . . . . . . . . . . . . . . . . . . . . . . . . . . . Peak Influence 1905 | 5 167 95 1068 426 834 906 1701 771 . 712 247 156 308 293 272 1573 1686 1164 1489 1167 1905 1300 . . . . 571 1184 . 567 Initial 1096 | . . 44 . 405 2 347 586 765 . . 247 . 54 152 92 88 1096 884 802 781 811 999 . . . . . 273 . . Average 514 | 1 60 11 506 161 508 658 1115 634 . 132 71 46 122 192 215 949 1336 859 1252 936 1478 1114 . . . . 208 737 . 44 Influence Increases 21590 | 20 499 147 1782 136 1510 1176 1155 291 . 1278 1 242 1195 552 200 2328 600 696 707 680 1194 849 229 102 . . 1071 1905 . 1045 Destroy 0b10 Robot/C 11350 | . 300 80 1080 120 800 620 600 60 . 680 . 60 660 240 80 860 380 320 560 300 695 330 210 90 . . 480 1110 . 635 Destroy 0b10 Robot/NC 791 | 20 35 5 140 5 125 60 5 5 . 120 . . 20 10 . 65 20 25 . 25 . 8 . 4 . . 48 24 . 22 Destroy Leader 2166 | . 56 20 288 10 232 214 20 . . 168 . 10 56 10 . 208 50 62 30 64 60 82 16 8 . . 114 236 . 152 Allied During Kill 1740 | . . 1 38 . . . 20 8 . 18 . 9 255 260 80 560 . . 13 2 130 39 3 . . . . 303 . 1 Trap Triggered on 0b10 10 | . . . . . . 10 . . . . . . . . . . . . . . . . . . . . . . . . Successful Hack 642 | . 31 . 50 . 36 73 . 24 . 52 . 34 25 . . 87 . 47 7 33 20 82 . . . . 11 18 . 12 Select Force Hacks 390 | . 30 . 60 . 60 60 . 180 . . . . . . . . . . . . . . . . . . . . . . Disable Machine 1464 | . . . 15 . 60 75 . . . 75 . 75 45 15 30 330 45 120 15 150 . 84 . . . . 180 108 . 42 Anti-Garrison Action 788 | . . . . . 150 . 500 . . . . . . . . . 50 . . . 88 . . . . . . . . . Destroy Structure 1628 | . 17 26 66 1 47 19 10 14 . 90 1 54 14 17 10 188 25 122 37 106 174 152 . . . . 202 70 . 166 Partial Spotted 42 | . . . . . . . . . . 15 . . . . . . . . 15 . 12 . . . . . . . . . Lose Combat Pursuer 579 | . 30 15 45 . . 45 . . . 60 . . 120 . . 30 30 . 30 . 15 72 . . . . 36 36 . 15 Influence Decreases 21074 | 20 385 261 743 1168 693 1097 357 1466 526 571 708 130 1033 594 180 1013 481 1236 364 1010 448 1462 1027 507 89 . 513 1293 1170 529 Entered New Map 9606 | . . 70 . 634 5 477 317 936 526 . 460 . 58 122 140 164 471 802 344 708 348 906 479 95 89 . . 285 1170 . Time Decay 9226 | 20 305 184 593 534 658 610 . 530 . 461 248 90 610 362 40 559 . 404 . 262 . 486 498 362 . . 453 648 . 309 Lost Part 1100 | . 80 . 90 . 30 10 20 . . 110 . . 30 10 . 40 10 30 . 20 60 30 10 50 . . 60 190 . 220 Lost Ally 853 | . . 7 60 . . . 20 . . . . 40 196 100 . 100 . . 20 20 40 40 40 . . . . 170 . . Purge Threat 289 | . . . . . . . . . . . . . 139 . . 150 . . . . . . . . . . . . . . Squads Dispatched 107 | . 3 . 13 . 8 8 . . . 11 . 4 3 . . 14 . 2 . 4 . 5 . . . . 6 20 . 6 Investigation 28 | . 2 . 8 . 2 3 . . . 2 . 1 1 . . 2 . . . . . 2 . . . . 1 3 . 1 Extermination 20 | . . . . . . . . . . 4 . 1 . . . 3 . 2 . . . 2 . . . . 3 5 . . Reinforcement 33 | . 1 . 2 . 3 . . . . 4 . 1 2 . . 3 . . . 1 . 1 . . . . 2 8 . 5 Assault 17 | . . . 3 . 3 2 . . . 1 . . . . . 3 . . . 1 . . . . . . . 4 . . Garrison 9 | . . . . . . 3 . . . . . 1 . . . 3 . . . 2 . . . . . . . . . . Intercept . | . . . . . . . . . . . . . . . . . . . . . . . . . . . . . . . Searches Triggered . | . . . . . . . . . . . . . . . . . . . . . . . . . . . . . . . Unchained Authorized 1 | . . . . . . . . . . . . . . . . . . . . . . . . . . . . 1 . . Construction Impeded 6 | . . . . . . . . . . 2 . . 1 . . 1 . . . . . 1 . . . . 1 . . . Haulers Reinforced 8 | . . . . . . . . . . 2 . . . . . 1 . . . 1 . . . . . . 1 . . 3 Active Scanning Responses . | . . . . . . . . . . . . . . . . . . . . . . . . . . . . . . . Cargo Convoy Interrupts 1 | . . . . . . . . . . 1 . . . . . . . . . . . . . . . . . . . . Stealth | -11 -10 -10 -9 -9 -8 -8 -8 -8 -8 -6 -6 -6 -6 -6 -6 -6 -6 -5 -5 -5 -5 -5 -5 -5 -5 -4 -4 -4 -4 -3 --------- Run | Yrd Mat Min Mat Min Mat Sto Gar Rec Scr Fac Was Fac Ext Cet Arc Hub Gar Fac Gar Fac Gar Fac Upp Upp Zhi Pro Fac Arm Lab Res Distress Signals 39 | . 1 . 5 . 5 2 1 . . 4 . . . 2 . 2 . . . 1 . 1 . . . . 5 4 . 6 Communications Jammed . | . . . . . . . . . . . . . . . . . . . . . . . . . . . . . . . Distress Signals . | . . . . . . . . . . . . . . . . . . . . . . . . . . . . . . . Times Spotted 830 | . 24 12 76 6 64 42 31 2 . 60 1 9 41 15 3 47 21 17 30 22 38 23 14 16 . . 51 99 . 66 Peak Tracking Total 15 | . 6 7 7 4 6 5 4 2 . 12 1 4 6 5 1 8 4 5 7 6 15 4 7 4 . . 6 6 . 12 Tactical Retreats 28 | . 2 1 2 . . 3 . . . 3 . . 5 . . 1 2 . 1 . 1 2 . . . . 2 2 . 1 Traps | -11 -10 -10 -9 -9 -8 -8 -8 -8 -8 -6 -6 -6 -6 -6 -6 -6 -6 -5 -5 -5 -5 -5 -5 -5 -5 -4 -4 -4 -4 -3 ------- Run | Yrd Mat Min Mat Min Mat Sto Gar Rec Scr Fac Was Fac Ext Cet Arc Hub Gar Fac Gar Fac Gar Fac Upp Upp Zhi Pro Fac Arm Lab Res Traps Triggered 36 | . . . 5 . 1 3 10 . . 2 . . . . . 1 . 1 2 . 2 . . . . . 1 8 . . Indirectly 1 | . . . . . . . . . . . . . . . . . . . . . . . . . . . 1 . . . Trap Hack Attempts . | . . . . . . . . . . . . . . . . . . . . . . . . . . . . . . . Triggered . | . . . . . . . . . . . . . . . . . . . . . . . . . . . . . . . Disarmed . | . . . . . . . . . . . . . . . . . . . . . . . . . . . . . . . Reprogrammed 4 | . . . . . . 4 . . . . . . . . . . . . . . . . . . . . . . . . Reused 1 | . . . . . . 1 . . . . . . . . . . . . . . . . . . . . . . . . Traps Extracted . | . . . . . . . . . . . . . . . . . . . . . . . . . . . . . . . Installed . | . . . . . . . . . . . . . . . . . . . . . . . . . . . . . . . Triggered 1 | . . . . . . 1 . . . . . . . . . . . . . . . . . . . . . . . . Machines | -11 -10 -10 -9 -9 -8 -8 -8 -8 -8 -6 -6 -6 -6 -6 -6 -6 -6 -5 -5 -5 -5 -5 -5 -5 -5 -4 -4 -4 -4 -3 ---------- Run | Yrd Mat Min Mat Min Mat Sto Gar Rec Scr Fac Was Fac Ext Cet Arc Hub Gar Fac Gar Fac Gar Fac Upp Upp Zhi Pro Fac Arm Lab Res Machines Disabled 114 | . . 1 1 . 5 5 2 . . 5 . 5 3 1 2 22 4 8 1 10 3 7 . . . . 16 9 1 3 Max in Single Turn 6 | . . 1 1 . 2 1 1 . . 3 . 5 1 1 1 4 1 2 1 6 1 4 . . . . 4 2 1 1 Garrison Access 7 | . . . . . 1 . . . . 1 . . . . . 1 . . . . . 2 . . . . 1 . . 1 Garrison Relay 5 | . . . . . . . 2 . . . . . . . . . 1 . . . 2 . . . . . . . . . Phase Generator 1 | . . . . . . . 1 . . . . . . . . . . . . . . . . . . . . . . . Network Hub 3 | . . . . . . . . . . . . . . . . 3 . . . . . . . . . . . . . . Machines Repaired . | . . . . . . . . . . . . . . . . . . . . . . . . . . . . . . . Machines Dismantled 1 | . . . . . . 1 . . . . . . . . . . . . . . . . . . . . . . . . Machines Sabotaged . | . . . . . . . . . . . . . . . . . . . . . . . . . . . . . . . Overloaded Fab Kills . | . . . . . . . . . . . . . . . . . . . . . . . . . . . . . . . Hacking | -11 -10 -10 -9 -9 -8 -8 -8 -8 -8 -6 -6 -6 -6 -6 -6 -6 -6 -5 -5 -5 -5 -5 -5 -5 -5 -4 -4 -4 -4 -3 --------- Run | Yrd Mat Min Mat Min Mat Sto Gar Rec Scr Fac Was Fac Ext Cet Arc Hub Gar Fac Gar Fac Gar Fac Upp Upp Zhi Pro Fac Arm Lab Res Machines Accessed 158 | . 7 1 14 . 14 18 3 12 . 13 . 3 12 1 . 9 . 3 1 7 3 10 2 1 4 . 7 7 . 6 Terminals 93 | . 5 . 10 . 10 15 3 6 . 7 . 2 11 1 . 7 . . 1 3 3 4 . . . . . 5 . . Fabricators 8 | . . . . . . . . . . 2 . . . . . . . . . . . 1 . . . . 2 1 . 2 Repair Stations 7 | . 1 . 1 . . . . . . . . . 1 . . . . 1 . 1 . 1 . . . . 1 . . . Recycling Units 21 | . 1 . 2 . 2 2 . 6 . 2 . . . . . . . . . 1 . . . . . . 3 1 . 1 Scanalyzers 8 | . . . 1 . 1 . . . . 1 . . . . . . . 1 . 1 . 2 . . . . . . . 1 Garrison Access 13 | . . . . . 1 1 . . . 1 . 1 . . . 2 . 1 . 1 . 2 . . . . 1 . . 2 Total Hacks 528 | . 25 1 43 . 45 52 6 35 . 48 . 8 32 3 . 19 . 23 1 29 10 64 4 1 17 . 23 17 . 22 Successful 254 | . 15 1 20 . 24 29 1 21 . 24 . 3 11 . . 12 . 10 1 13 2 20 4 1 17 . 13 6 . 6 Failed 270 | . 10 . 22 . 21 22 5 14 . 23 . 5 21 3 . 7 . 13 . 16 8 44 . . . . 10 11 . 15 Catastrophic 64 | . 2 . 2 . . 5 2 . . 5 . . 4 . . 2 . 3 . 4 3 19 . . . . 4 5 . 4 Database Lockouts 4 | . . . 1 . . 1 . . . 1 . . . . . . . . . . . . . . . . . . . 1 Manual 220 | . 16 . 25 . 36 33 . 25 . 26 . 6 12 1 . 10 . . . 5 2 16 . . . . 6 . . 1 Terminals 309 | . 20 . 34 . 39 45 6 21 . 26 . 7 29 3 . 16 . . 1 11 10 27 . . . . . 14 . . Fabricators 34 | . . . . . . . . . . 6 . . . . . . . . . . . 3 . . . . 14 2 . 9 Repair Stations 30 | . 3 . 2 . . . . . . . . . 3 . . . . 11 . 3 . 6 . . . . 2 . . . Recycling Units 49 | . 2 . 4 . 2 4 . 14 . 7 . . . . . . . . . 4 . . . . . . 6 1 . 5 Scanalyzers 55 | . . . 3 . 2 . . . . 8 . . . . . . . 11 . 9 . 16 . . . . . . . 6 Garrison Access 28 | . . . . . 2 3 . . . 1 . 1 . . . 3 . 1 . 2 . 12 . . . . 1 . . 2 Terminal Hacks 92 | . 3 1 6 . 7 15 1 5 . 4 . 1 7 . . 5 . . 1 1 2 7 4 1 17 . . 4 . . Record 9 | . . . . . . . . . . . . . . . . . . . . . . . 3 . 5 . . 1 . . Part Schematic 7 | . . . . . . 2 . 1 . . . . . . . . . . . . . . . . 4 . . . . . Robot Analysis 9 | . . . . . 3 2 . . . . . . . . . . . . . . . . . . 4 . . . . . Prototype ID Bank 11 | . 2 . 1 . 2 . . 1 . 1 . . . . . . . . . . . . . . 4 . . . . . Open Door 17 | . . 1 . . . 6 . . . . . . 4 . . . . . 1 . 1 . 1 1 . . . 2 . . Open DSF 1 | . . . . . . . . . . . . . . . . . . . . 1 . . . . . . . . . . Level Access Points 2 | . . . . . . . . . . . . . . . . 1 . . . . . 1 . . . . . . . . Branch Access Points 4 | . . . . . 1 . . 1 . . . 1 . . . . . . . . . 1 . . . . . . . . Emergency Access Points 2 | . . . . . . . 1 . . . . . . . . . . . . . 1 . . . . . . . . . Terminal Index 7 | . 1 . . . 1 1 . 2 . 1 . . . . . . . . . . . 1 . . . . . . . . Recycling Unit Index 1 | . . . . . . . . . . . . . . . . 1 . . . . . . . . . . . . . . Scanalyzer Index 1 | . . . . . . . . . . . . . . . . . . . . . . 1 . . . . . . . . Alert Level 1 | . . . 1 . . . . . . . . . . . . . . . . . . . . . . . . . . . Unreport Threat 3 | . . . 1 . . . . . . . . . 1 . . 1 . . . . . . . . . . . . . . Locate Traps 1 | . . . . . . . . . . . . . . . . . . . . . . 1 . . . . . . . . Reprogram Traps 1 | . . . . . . 1 . . . . . . . . . . . . . . . . . . . . . . . . Transport Status 1 | . . . . . . . . . . 1 . . . . . . . . . . . . . . . . . . . . Investigation Status 1 | . . . 1 . . . . . . . . . . . . . . . . . . . . . . . . . . . Hauler Manifests 8 | . . . 1 . . 2 . . . 1 . . 1 . . 1 . . . . . 2 . . . . . . . . Registered Components 1 | . . . . . . . . . . . . . . . . . . . . . . . . . . . . 1 . . Registered Prototypes 1 | . . . 1 . . . . . . . . . . . . . . . . . . . . . . . . . . . Zone Layout 3 | . . . . . . 1 . . . . . . 1 . . 1 . . . . . . . . . . . . . . Fabricator Hacks 10 | . . . . . . . . . . 1 . . . . . . . . . . . 2 . . . . 4 1 . 2 Network Status 4 | . . . . . . . . . . 1 . . . . . . . . . . . . . . . . 1 1 . 1 Load Schematic 3 | . . . . . . . . . . . . . . . . . . . . . . 1 . . . . 2 . . . Build 3 | . . . . . . . . . . . . . . . . . . . . . . 1 . . . . 1 . . 1 Repair Station Hacks 13 | . 1 . 2 . . . . . . . . . . . . . . 5 . 2 . 1 . . . . 2 . . . Scan Component 7 | . . . 1 . . . . . . . . . . . . . . 3 . 1 . 1 . . . . 1 . . . Repair 5 | . . . 1 . . . . . . . . . . . . . . 2 . 1 . . . . . . 1 . . . Refit 1 | . 1 . . . . . . . . . . . . . . . . . . . . . . . . . . . . . Recycling Unit Hacks 10 | . 1 . . . . . . 2 . 2 . . . . . . . . . 1 . . . . . . 3 1 . . Retrieve Components 10 | . 1 . . . . . . 2 . 2 . . . . . . . . . 1 . . . . . . 3 1 . . Scanalyzer 25 | . . . 2 . 1 . . . . 6 . . . . . . . 4 . 5 . 5 . . . . . . . 2 Insert Component 9 | . . . 1 . . . . . . 1 . . . . . . . 3 . 1 . 2 . . . . . . . 1 Analyze 9 | . . . . . . . . . . 1 . . . . . . . 1 . 4 . 3 . . . . . . . . Retrieve Study 7 | . . . 1 . 1 . . . . 4 . . . . . . . . . . . . . . . . . . . 1 Garrison Access Hacks 12 | . . . . . 1 1 . . . 1 . . . . . 2 . 1 . 2 . 2 . . . . 1 . . 1 Unlock Access 5 | . . . . . 1 1 . . . . . . . . . 1 . 1 . 1 . . . . . . . . . . Seal Access 6 | . . . . . . . . . . 1 . . . . . 1 . . . . . 2 . . . . 1 . . 1 Coupler Status 1 | . . . . . . . . . . . . . . . . . . . . 1 . . . . . . . . . . Unauthorized Hacks 92 | . 10 . 10 . 15 13 . 14 . 10 . 2 4 . . 5 . . . 2 . 3 . . . . 3 . . 1 Terminals 72 | . 9 . 8 . 13 11 . 8 . 8 . 1 4 . . 5 . . . 2 . 3 . . . . . . . . Track 7 | . . . . . . 2 . . . 1 . . 2 . . 2 . . . . . . . . . . . . . . Botnet 25 | . 4 . 2 . 3 3 . 2 . 4 . 1 1 . . 2 . . . 1 . 2 . . . . . . . . Disrupt 1 | . . . . . . . . . . . . . 1 . . . . . . . . . . . . . . . . . Operators 7 | . 1 . . . 1 1 . 1 . 1 . . . . . . . . . 1 . 1 . . . . . . . . Skim 31 | . 4 . 6 . 9 5 . 5 . 2 . . . . . . . . . . . . . . . . . . . . Sabotage 1 | . . . . . . . . . . . . . . . . 1 . . . . . . . . . . . . . . Fabricators 4 | . . . . . . . . . . 1 . . . . . . . . . . . . . . . . 2 . . 1 Haulers 3 | . . . . . . . . . . 1 . . . . . . . . . . . . . . . . 1 . . 1 Recompile 1 | . . . . . . . . . . . . . . . . . . . . . . . . . . . 1 . . . Repair Stations . | . . . . . . . . . . . . . . . . . . . . . . . . . . . . . . . Recycling Units 15 | . 1 . 2 . 2 2 . 6 . 1 . . . . . . . . . . . . . . . . 1 . . . Recyclers 2 | . . . . . . . . . . 1 . . . . . . . . . . . . . . . . 1 . . . Tunnel 13 | . 1 . 2 . 2 2 . 6 . . . . . . . . . . . . . . . . . . . . . . Scanalyzers . | . . . . . . . . . . . . . . . . . . . . . . . . . . . . . . . Garrison Access 1 | . . . . . . . . . . . . 1 . . . . . . . . . . . . . . . . . . Reprogram 1 | . . . . . . . . . . . . 1 . . . . . . . . . . . . . . . . . . Data Cores Recovered 1 | . . . . . . . . . . . . . . . . 1 . . . . . . . . . . . . . . Used . | . . . . . . . . . . . . . . . . . . . . . . . . . . . . . . . Hacking Detections 115 | . 6 . 10 . 12 15 3 9 . 11 . 2 9 1 . 7 . 2 . 6 2 10 . . . . 3 4 . 3 Full Trace Events 13 | . 1 . 1 . 1 2 2 1 . 2 . . 1 . . . . . . . . 2 . . . . . . . . Feedback Events 1 | . . . . . . . . . . 1 . . . . . . . . . . . . . . . . . . . . Corruption 1 | . . . . . . . . . . 1 . . . . . . . . . . . . . . . . . . . . Feedback Blocked . | . . . . . . . . . . . . . . . . . . . . . . . . . . . . . . . Robot Schematics Acquired . | . . . . . . . . . . . . . . . . . . . . . . . . . . . . . . . Robots Built . | . . . . . . . . . . . . . . . . . . . . . . . . . . . . . . . Authchips . | . . . . . . . . . . . . . . . . . . . . . . . . . . . . . . . Time . | . . . . . . . . . . . . . . . . . . . . . . . . . . . . . . . Total Robot Build Rating . | . . . . . . . . . . . . . . . . . . . . . . . . . . . . . . . Part Schematics Acquired 10 | . . . . . . 2 . 1 . 1 . . . . . . . 1 . . . 1 . . 4 . . . . . Parts Built 3 | . . . . . . . . . . . . . . . . . . . . . . 1 . . . . 1 . . 1 Authchips 1 | . . . . . . . . . . . . . . . . . . . . . . . . . . . 1 . . . Time 274 | . . . . . . . . . . . . . . . . . . . . . . 73 . . . . 62 . . 139 Total Part Build Rating 19 | . . . . . . . . . . . . . . . . . . . . . . 3 . . . . 7 . . 9 Part Studies Acquired 7 | . . . 1 . 1 . . . . 4 . . . . . . . . . . . . . . . . . . . 1 Parts Repaired 5 | . . . 1 . . . . . . . . . . . . . . 2 . 1 . . . . . . 1 . . . Time 427 | . . . 26 . . . . . . . . . . . . . . 244 . 49 . . . . . . 108 . . . Parts Recycled . | . . . . . . . . . . . . . . . . . . . . . . . . . . . . . . . Recycled Matter . | . . . . . . . . . . . . . . . . . . . . . . . . . . . . . . . Retrieved Matter . | . . . . . . . . . . . . . . . . . . . . . . . . . . . . . . . Retrieved Components 40 | . 3 . . . . . . 6 . 10 . . . . . . . . . . . . . . . . 20 1 . . Parts Scanalyzed 3 | . . . . . . . . . . 1 . . . . . . . 2 . . . . . . . . . . . . Part Schematics Acquired 3 | . . . . . . . . . . 1 . . . . . . . 1 . . . 1 . . . . . . . . Parts Damaged 1 | . . . . . . . . . . . . . . . . . . 1 . . . . . . . . . . . . Bothacking | -11 -10 -10 -9 -9 -8 -8 -8 -8 -8 -6 -6 -6 -6 -6 -6 -6 -6 -5 -5 -5 -5 -5 -5 -5 -5 -4 -4 -4 -4 -3 ------------ Run | Yrd Mat Min Mat Min Mat Sto Gar Rec Scr Fac Was Fac Ext Cet Arc Hub Gar Fac Gar Fac Gar Fac Upp Upp Zhi Pro Fac Arm Lab Res Used RIF Installer 4 | . . . . . . . 1 . . . . . . . . . 1 . 1 . 1 . . . . . . . . . Coupler Efficiency 1 | . . . . . . . . . . . . . . . . . 1 . . . . . . . . . . . . . Threat Obfuscator 1 | . . . . . . . . . . . . . . . . . . . . . 1 . . . . . . . . . Alert ID Control 1 | . . . . . . . . . . . . . . . . . . . 1 . . . . . . . . . . . Robots Hacked 13 | . . . . . . . . . . . . . . . . . . . . 2 . 7 . . . . . 2 . 2 Non-combat 9 | . . . . . . . . . . . . . . . . . . . . 2 . 7 . . . . . . . . Combat 4 | . . . . . . . . . . . . . . . . . . . . . . . . . . . . 2 . 2 Robot Hacks Applied 15 | . . . . . . . . . . . . . . . . . . . . 2 . 9 . . . . . 2 . 2 parse_system 6 | . . . . . . . . . . . . . . . . . . . . . . 2 . . . . . 2 . 2 map_walls 2 | . . . . . . . . . . . . . . . . . . . . . . 2 . . . . . . . . map_earth 1 | . . . . . . . . . . . . . . . . . . . . 1 . . . . . . . . . . drop_inventory 2 | . . . . . . . . . . . . . . . . . . . . . . 2 . . . . . . . . map_route 2 | . . . . . . . . . . . . . . . . . . . . 1 . 1 . . . . . . . . mark_security 1 | . . . . . . . . . . . . . . . . . . . . . . 1 . . . . . . . . link_fov 1 | . . . . . . . . . . . . . . . . . . . . . . 1 . . . . . . . . Relay Couplers Released 21 | . . . . . 3 . 8 . . . . . . . . . 3 . . . 7 . . . . . . . . . Machine Destruction 21 | . . . . . 3 . 8 . . . . . . . . . 3 . . . 7 . . . . . . . . . Attached 3 | . . . . . . . . . . . . . . . . . . . . 1 1 1 . . . . . . . . Fabnet Peak Effective % . | . . . . . . . . . . . . . . . . . . . . . . . . . . . . . . . Robots Rewired 40 | . . . . . . . 3 . . . . . 21 . . . . . 2 . 1 . 2 . . . . 11 . . Allies Hacked 3 | . . . . . . . . . . . . . . . . . . . 1 . . . . . . . . 2 . . Hacks Repelled . | . . . . . . . . . . . . . . . . . . . . . . . . . . . . . . . Allies | -11 -10 -10 -9 -9 -8 -8 -8 -8 -8 -6 -6 -6 -6 -6 -6 -6 -6 -5 -5 -5 -5 -5 -5 -5 -5 -4 -4 -4 -4 -3 -------- Run | Yrd Mat Min Mat Min Mat Sto Gar Rec Scr Fac Was Fac Ext Cet Arc Hub Gar Fac Gar Fac Gar Fac Upp Upp Zhi Pro Fac Arm Lab Res Total Allies 76 | . . 5 . . . . 5 . . . . 2 31 5 . . . . 2 . 5 . 4 . . . . 11 . 6 Largest Group 21 | . . 3 3 . . . 4 4 2 2 . 2 20 21 9 9 . . 2 1 5 3 2 . . . . 9 . . Highest-Rated Group 1067 | . . 45 40 . . . 70 54 44 44 . 58 680 1067 541 541 . . 97 51 396 287 79 . . . . 516 . . Highest-Rated Ally 159 | . . 31 16 . . . 39 39 39 39 . 29 159 159 96 96 . . 51 51 148 148 49 . . . . 68 . . Total Orders 21 | . . . . . . . . . . . . . 7 4 . 1 . . . . 3 2 . . . . . 4 . . STAY 13 | . . . . . . . . . . . . . 6 3 . 1 . . . . . 1 . . . . . 2 . . ROAM 1 | . . . . . . . . . . . . . . . . . . . . . 1 . . . . . . . . . FOLLOW 7 | . . . . . . . . . . . . . 1 1 . . . . . . 2 1 . . . . . 2 . . Ally Attacks 566 | . . 11 30 . . . 27 21 . 19 . 18 125 62 15 87 . . 12 4 40 36 3 . . . . 47 . 9 Total Damage 14533 | . . 188 272 . . . 302 178 . 124 . 266 2493 1602 312 2993 . . 178 175 1749 910 36 . . . . 2657 . 98 Kills 90 | . . 1 2 . . . 1 2 . 1 . 1 11 10 3 25 . . . 1 9 5 1 . . . . 17 . . Allies Corrupted 6 | . . . . . . . . . . 1 . . 1 . . 2 . . 1 1 . . . . . . . . . . Allies Melted 2 | . . . . . . . . . . . . 1 . . . . . . . . 1 . . . . . . . . . Intel | -11 -10 -10 -9 -9 -8 -8 -8 -8 -8 -6 -6 -6 -6 -6 -6 -6 -6 -5 -5 -5 -5 -5 -5 -5 -5 -4 -4 -4 -4 -3 ------- Run | Yrd Mat Min Mat Min Mat Sto Gar Rec Scr Fac Was Fac Ext Cet Arc Hub Gar Fac Gar Fac Gar Fac Upp Upp Zhi Pro Fac Arm Lab Res Active Infowar (turns) 5133 | 91 37 412 . 1 . . . . 1 20 . . . . . 1 . 118 . . . . 630 . . 693 414 219 652 1844 Optics 19 | . . . . . . . . . . 19 . . . . . . . . . . . . . . . . . . . . Sensors 2854 | . . . . 1 . . . . . . . . . . . . . 118 . . . . 630 . . 493 414 219 652 327 IFF 1519 | . . . . . . . . . . 1 . . . . . 1 . . . . . . . . . . . . . 1517 Seismic 740 | 91 37 412 . . . . . . . . . . . . . . . . . . . . . . . 200 . . . . Machine Analysis 2 | . . . . . . . . . 1 . . . . . . . . . . . . . . . . . . . . 1 ECM 2 | . . . . . . . . . . . . . . . . . . . . . . . . . . . . . . 2 Robot Analysis Total 9 | . . . . . 3 2 . . . . . . . . . . . . . . . . . . 4 . . . . . Derelict Logs Recovered 7 | . . 2 . 1 . . . . . . . . . . . . . . . . . . 2 1 . 1 . . . . Drone Launches 5 | . . . . . . . . . . . . . . . . . . . . . . . . . . . . . . 5 Drone Recoveries . | . . . . . . . . . . . . . . . . . . . . . . . . . . . . . . . Exploration | -11 -10 -10 -9 -9 -8 -8 -8 -8 -8 -6 -6 -6 -6 -6 -6 -6 -6 -5 -5 -5 -5 -5 -5 -5 -5 -4 -4 -4 -4 -3 ------------- Run | Yrd Mat Min Mat Min Mat Sto Gar Rec Scr Fac Was Fac Ext Cet Arc Hub Gar Fac Gar Fac Gar Fac Upp Upp Zhi Pro Fac Arm Lab Res Turns Passed 40957 | 171 1106 1293 2384 1505 2542 1984 2164 1491 1593 2875 908 473 2034 832 99 1653 656 968 559 570 1171 1267 1324 835 269 729 1846 2365 652 2639 Spaces Moved 17644 | 75 585 635 1002 601 1064 716 830 500 652 1102 420 200 819 363 46 868 312 455 265 281 570 578 622 423 153 293 694 899 320 1301 Core 6 | 6 . . . . . . . . . . . . . . . . . . . . . . . . . . . . . . Treads 15794 | 69 305 348 237 601 1064 716 830 500 652 940 273 200 819 363 46 868 312 455 265 281 570 578 622 423 153 293 561 829 320 1301 Legs 1 | . . . . . . . . . . . . . . . . . . . . . . . . . . . . 1 . . Wheels 1843 | . 280 287 765 . . . . . . 162 147 . . . . . . . . . . . . . . . 133 69 . . Hover . | . . . . . . . . . . . . . . . . . . . . . . . . . . . . . . . Flight . | . . . . . . . . . . . . . . . . . . . . . . . . . . . . . . . Fastest Speed 50 | 50 110 130 110 240 160 158 230 235 235 115 115 160 160 160 160 160 160 160 160 160 160 160 162 162 163 243 160 150 170 164 Average Speed 189 | 151 141 190 175 240 202 231 233 235 239 225 201 225 166 160 160 160 160 160 160 160 160 163 192 163 165 243 196 167 173 168 Slowest Speed 490 | 160 240 320 400 240 245 238 238 235 246 326 240 240 240 160 160 160 160 160 160 160 160 165 243 243 243 243 400 490 250 250 Overloaded Moves . | . . . . . . . . . . . . . . . . . . . . . . . . . . . . . . . Propulsion Burnouts . | . . . . . . . . . . . . . . . . . . . . . . . . . . . . . . . Robots Hopped . | . . . . . . . . . . . . . . . . . . . . . . . . . . . . . . . Potential Cave-ins 5 | . . . . . . . . . . . . . . . . . . . . . . 2 . . . . 3 . . . Cave-ins Triggered . | . . . . . . . . . . . . . . . . . . . . . . . . . . . . . . . Teleports 2 | . . . . . . . . . . . . . . . . . . . . . . . . . . . . 1 . 1 Exploration Rate (%) 60 | 5 91 96 98 99 89 95 93 92 52 28 94 6 87 72 64 83 36 15 36 11 89 18 61 57 60 44 20 55 91 49 Regions Visited 30 Branch Regions 15 Pre-discovered Areas 26 | . 1 1 4 1 5 3 . 7 . . . . . . . . . . . . . . . . 3 1 . . . . Known Exits Taken 12 | . . . . . 1 1 . 1 1 . . 1 . . . 1 . 1 . 1 . 1 . . . 1 1 . 1 . Unknown Exits Taken 12 | 1 1 1 1 1 . . . . . . . . 1 1 1 . . . . . . . 1 1 1 . . 1 . . Scrap Searched 19 | . . 2 . 3 . . . . 9 . . . . . . . . . . . . . 1 3 . 1 . . . . Spaces Dug 286 | . 5 16 14 . . 2 . 4 . 4 . 2 . . . 167 . . 2 . . 19 8 13 . 2 23 1 . 4 Terrain Destroyed 1331 | . 13 28 73 . 38 11 . 9 . 84 1 71 15 18 10 250 5 62 20 73 52 84 60 46 . 8 116 67 . 117 Melee . | . . . . . . . . . . . . . . . . . . . . . . . . . . . . . . . Projectile 536 | . . 3 . . 11 11 . 9 . 8 1 6 15 18 10 88 5 23 19 15 17 57 33 29 . 8 59 30 . 61 AOE 769 | . 13 25 73 . 27 . . . . 76 . 65 . . . 162 . 39 . 58 34 27 27 17 . . 52 19 . 55 Terrain Rammed . | . . . . . . . . . . . . . . . . . . . . . . . . . . . . . . . Walls Destroyed . | . . . . . . . . . . . . . . . . . . . . . . . . . . . . . . . Machines Disabled . | . . . . . . . . . . . . . . . . . . . . . . . . . . . . . . . Actions | -11 -10 -10 -9 -9 -8 -8 -8 -8 -8 -6 -6 -6 -6 -6 -6 -6 -6 -5 -5 -5 -5 -5 -5 -5 -5 -4 -4 -4 -4 -3 --------- Run | Yrd Mat Min Mat Min Mat Sto Gar Rec Scr Fac Was Fac Ext Cet Arc Hub Gar Fac Gar Fac Gar Fac Upp Upp Zhi Pro Fac Arm Lab Res Total 22166 | 99 717 676 1364 632 1256 884 979 797 681 1320 471 213 1350 571 62 980 387 620 323 351 715 765 687 488 173 305 947 1377 413 1563 Wait 1420 | . 23 1 104 4 15 33 23 279 2 15 11 3 276 150 13 18 24 96 3 22 35 30 2 10 . . 49 74 70 35 Move 17615 | 74 584 634 1001 600 1063 715 829 499 651 1102 419 199 818 362 45 867 311 454 264 280 569 577 621 422 152 292 693 898 319 1301 Hop . | . . . . . . . . . . . . . . . . . . . . . . . . . . . . . . . Pick Up 260 | 3 19 5 41 3 21 6 9 . 2 24 4 2 9 10 . 6 3 9 1 1 13 9 . 1 4 2 11 22 8 12 Fast Attach 116 | 7 2 . 8 . . . . . 2 8 5 . 1 3 . 1 1 2 . 6 4 11 2 5 3 . 10 18 2 15 Attach 109 | . 6 . 8 . 7 2 2 . . 10 . . 3 1 . 4 1 6 . 3 6 2 . 4 3 1 5 16 2 17 Detach 36 | . 1 . . . 2 1 . . 2 2 . . . 1 . . . 2 . 4 3 3 . 1 2 1 3 2 1 5 Swap 559 | . 4 14 39 4 25 16 11 1 16 40 8 2 17 9 . 15 8 13 1 4 12 45 15 14 3 5 45 106 1 66 Drop 290 | . 4 2 33 4 23 5 10 1 6 21 17 2 10 14 . 7 2 5 1 1 11 17 . 1 6 . 20 33 5 29 Fire 1443 | 15 74 15 125 13 87 86 52 11 . 91 7 5 71 21 4 59 37 32 36 30 61 70 36 30 . 4 106 182 5 78 Melee . | . . . . . . . . . . . . . . . . . . . . . . . . . . . . . . . Ram 1 | . . . 1 . . . . . . . . . . . . . . . . . . . . . . . . . . . Kick . | . . . . . . . . . . . . . . . . . . . . . . . . . . . . . . . Crush 63 | . . 4 4 4 13 6 . 6 . 7 . . 3 . . 3 . 1 . . . 1 . . . . 5 1 . 5 Escape Stasis 32 | . . . . . . 6 14 . . . . . . . . . . . . . . . . . . . . 12 . . Rewire 212 | . . 1 . . . . 27 . . . . . 142 . . . . . 17 . 1 . 11 . . . . 13 . . Trap . | . . . . . . . . . . . . . . . . . . . . . . . . . . . . . . . Miscellaneous 10 | . . . . . . 8 2 . . . . . . . . . . . . . . . . . . . . . . . Route ------- -11/Scrapyard -10/Materials (discovered 4 exits: *Mat x2 / *Min x2) -10/Mines (discovered 3 exits: *Mat x2 / [*Exi]) -9/Materials (discovered 4 exits: *Mat x3 / [*Min]) -9/Mines (discovered 2 exits: *Mat x2) -8/Materials (discovered 5 exits: *Fac x3 / *Sto x2) -8/Storage (discovered 3 exits: *Fac / Rec / Gar) -8/Garrison (discovered 3 exits: *Rec x3) -8/Recycling (discovered 2 exits: *Fac / *Scr) -8/Scraptown (discovered 2 exits: *Fac x2) -6/Factory (discovered 8 exits: Fac x4 / Low x2 / Ext x2) -6/Waste -6/Factory (discovered 4 exits: Low x2 / *Ext x2) -6/Extension (discovered 3 exits: *Fac x2 / *Cet) -6/Cetus (discovered 2 exits: *Fac / [*Arc]) -6/Archives -6/Hub_04(d) (discovered 5 exits: *Fac x4 / Gar) -6/Garrison -5/Factory -5/Garrison -5/Factory -5/Garrison (discovered 4 exits: *Fac x3 / *Fac) -5/Factory (discovered 6 exits: Fac x4 / *Upp x2) -5/Upper Caves -5/Upper Caves -5/Zhirov -4/Proximity Caves -4/Factory (discovered 3 exits: Res x2 / *Arm) -4/Armory (discovered 2 exits: *Res / [*Lab]) -4/Lab -3/Research (discovered 1 exit: [*Res]) History --------- Turn | Location | Event 3 | -11/Scrapyard | Discovered new exit (range 15) 172 | -11/Scrapyard | Entered Materials 301 | -10/Materials | Build established: Mutant 327 | -10/Materials | Discovered new exit (range 7) 748 | -10/Materials | Discovered new exit (range 8) 994 | -10/Materials | Core integrity fell below 50% 1039 | -10/Materials | Lost 5 parts (1p1n1u2w) 1107 | -10/Materials | Discovered new exit (range 4) 1200 | -10/Materials | Discovered new exit (range 8) 1278 | -10/Materials | Entered Mines 1348 | -10/Mines | Learned Materials stockpile data 1453 | -10/Mines | Discovered new exit (range 5) 1502 | -10/Mines | Assembled infested the area 1534 | -10/Mines | Learned location of Zion (-6) 1554 | -10/Mines | Met 8R-AWN 1603 | -10/Mines | Discovered new exit (range 5) 1990 | -10/Mines | Found the Drone Emporium 2012 | -10/Mines | Found Prototype Device 2225 | -10/Mines | Discovered new exit (range 13) 2535 | -10/Mines | Assisted by bots powering up and referring to "LRC-V3" 2571 | -10/Mines | Entered Materials 2571 | -9/Materials | Accompanied by 3 allies 2571 | -9/Materials | Evolved 2 slots: Utility x1, Weapon x1 3166 | -9/Materials | Build established: Tank 3253 | -9/Materials | Discovered new exit (range 10) 3502 | -9/Materials | Destroyed 9 combat bots 3535 | -9/Materials | Discovered new exit (range 5) 3771 | -9/Materials | First assault squad dispatched 3776 | -9/Materials | Repaired Hcp. Storage Unit 3998 | -9/Materials | Central database locked down 3998 | -9/Materials | Identified Bomb Drone Bay 4016 | -9/Materials | Build established: Scavenger-Tank 4223 | -9/Materials | Discovered new exit (range 16) 4338 | -9/Materials | Learned 4 Recycling zone layouts 4354 | -9/Materials | Build established: Tank 4373 | -9/Materials | Learned Storage trap positions 4375 | -9/Materials | Loaded intel: 7 trap records 4387 | -9/Materials | Learned Storage security intel 4596 | -9/Materials | Core integrity fell below 50% 4610 | -9/Materials | Sterilization system engaged 4610 | -9/Materials | Non-combat units ordered to evacuate 4710 | -9/Materials | Combat units ordered to evacuate 4747 | -9/Materials | Discovered new exit (range 16) 4910 | -9/Materials | Ambient heat levels rising (+10) 4955 | -9/Materials | Entered Mines 5110 | -9/Mines | Discovered new exit (range 15) 5120 | -9/Mines | Found a damaged Exp. Sensor Array with a note attached 5125 | -9/Mines | Found Prototype Device 5125 | -9/Mines | Identified Exp. Sensor Array 5278 | -9/Mines | Discovered new exit (range 6) 6259 | -9/Mines | Learned Materials emergency access door positions 6460 | -9/Mines | Entered Materials 6460 | -8/Materials | Evolved 2 slots: Propulsion x1, Weapon x1 6464 | -8/Materials | Discovered new exit (range 9) 7061 | -8/Materials | Discovered new exit (range 8) 7347 | -8/Materials | Identified exit to Garrison 7629 | -8/Materials | Discovered new exit (range 15) 7698 | -8/Materials | Identified exit to Storage 8635 | -8/Materials | Learned Storage trap positions 8636 | -8/Materials | Learned location of 1 exit from Storage 8642 | -8/Materials | Identified exit to Factory 8723 | -8/Materials | Learned location of 2 exits from Factory 8860 | -8/Materials | First assault squad dispatched 9002 | -8/Materials | Entered Storage 9003 | -8/Storage | Identified exit to Recycling 9004 | -8/Storage | Loaded intel: 16 trap records 9264 | -8/Storage | Garrison activated, responded to threat 9279 | -8/Storage | Identified exit to Garrison 9402 | -8/Storage | First assault squad dispatched 9693 | -8/Storage | Central database locked down 9729 | -8/Storage | Learned location of 1 exit from Lower Caves 9820 | -8/Storage | Learned location of 1 exit from Extension 9832 | -8/Storage | Learned Factory garrison access intel 9833 | -8/Storage | Learned Factory security intel 9835 | -8/Storage | Learned Factory stockpile data 9844 | -8/Storage | Learned Factory stockpile data 10378 | -8/Storage | Discovered exit to Factory (range 15) 10501 | -8/Storage | Found Prototype Launcher 10986 | -8/Storage | Entered Garrison 11128 | -8/Garrison | Triggered checkpoint 11161 | -8/Garrison | Garrison Relay disabled 11260 | -8/Garrison | Phase Generator disabled 11722 | -8/Garrison | Discovered exit to Recycling (range 9) 11757 | -8/Garrison | Core integrity fell below 50% 11809 | -8/Garrison | Garrison Relay disabled 12048 | -8/Garrison | Triggered checkpoint 12172 | -8/Garrison | Triggered checkpoint 12289 | -8/Garrison | Discovered exit to Recycling (range 5) 12366 | -8/Garrison | Rescued a captive Derelict 12376 | -8/Garrison | Rescued a captive Derelict 12551 | -8/Garrison | Spotted B-75 Beast 12566 | -8/Garrison | Destroyed B-75 Beast 12756 | -8/Garrison | Triggered checkpoint 12848 | -8/Garrison | Discovered exit to Recycling (range 10) 12898 | -8/Garrison | Triggered checkpoint 12958 | -8/Garrison | Build established: Gunner 13020 | -8/Garrison | Installed Relay Interface Framework 13150 | -8/Garrison | Entered Recycling 13150 | -8/Recycling | Accompanied by 4 allies 14158 | -8/Recycling | Learned Storage stockpile data 14210 | -8/Recycling | Discovered new exit (range 6) 14236 | -8/Recycling | Learned 4 Factory zone layouts 14304 | -8/Recycling | Identified exit to Scraptown 14584 | -8/Recycling | Scanned before Scraplab entrance 14617 | -8/Recycling | Entered Scraplab 14641 | -8/Recycling | Entered Scraptown 14641 | -8/Scraptown | Accompanied by 2 allies 14641 | -8/Scraptown | System corruption cleaned by C-Scrubber 14642 | -8/Scraptown | Identified exit to Factory 15052 | -8/Scraptown | Turned away by UFD registrar 15085 | -8/Scraptown | Visited Cyclists 15152 | -8/Scraptown | Visited Assassins FH 15199 | -8/Scraptown | Visited TADAMA 15268 | -8/Scraptown | Visited Comm Corps 15347 | -8/Scraptown | Visited Shadow of the Wyrm 15366 | -8/Scraptown | Visited Junk Repository 15505 | -8/Scraptown | Visited Bundlers 16234 | -8/Scraptown | Entered Factory 16234 | -6/Factory | Accompanied by 2 allies 16234 | -6/Factory | Evolved 4 slots: Power x1, Propulsion x1, Utility x2 16235 | -6/Factory | Identified exit to Factory 16235 | -6/Factory | Identified exit to Lower Caves 16235 | -6/Factory | Identified exit to Extension 16240 | -6/Factory | Loaded intel: 4 garrison access locations 18278 | -6/Factory | Central database locked down 18608 | -6/Factory | Lost 3 parts (2n1w) 18614 | -6/Factory | Destroyed 7 combat bots 18699 | -6/Factory | Cargo convoy interrupted 18732 | -6/Factory | Destroyed 9 combat bots 18823 | -6/Factory | System corruption reached 10% 18853 | -6/Factory | Lost 4 parts (1p2n1u) 18949 | -6/Factory | Found PL-3XN's Ring of Power 19034 | -6/Factory | First assault squad dispatched 19109 | -6/Factory | Sucked down chute 19109 | -6/Factory | Entered Waste 19109 | -6/Waste | The area was eerily silent 19207 | -6/Waste | Build established: Scavenger-Gunner 19319 | -6/Waste | A Compactor rumbled back to life 19319 | -6/Waste | Spotted C-40 Crusher 19361 | -6/Waste | Destroyed C-40 Crusher 19436 | -6/Waste | Discovered new exit (range 11) 20017 | -6/Waste | Entered Factory 20391 | -6/Factory | Garrison activated, responded to threat 20490 | -6/Factory | Entered Extension 21165 | -6/Extension | Rescued a captive Derelict 21168 | -6/Extension | Rescued a captive Derelict 21177 | -6/Extension | Spotted B-75 Beast 21250 | -6/Extension | Rescued a captive Derelict 21366 | -6/Extension | Rescued a captive Derelict 21367 | -6/Extension | Rescued a captive Derelict 21761 | -6/Extension | Build established: Commander-Tank 21828 | -6/Extension | Destroyed B-75 Beast 21844 | -6/Extension | Spotted B-75 Beast 21868 | -6/Extension | Destroyed B-75 Beast 21893 | -6/Extension | Lost 4 allies 21968 | -6/Extension | Rescued A7 21991 | -6/Extension | Rescued a captive Derelict 22073 | -6/Extension | Rescued a captive Derelict 22074 | -6/Extension | Rescued a captive Derelict 22104 | -6/Extension | Rescued a captive Derelict 22359 | -6/Extension | Discovered exit to Factory (range 10) 22361 | -6/Extension | Discovered new exit (range 6) 22524 | -6/Extension | Entered Cetus 22524 | -6/Cetus | Accompanied by 16 allies (A7) 22529 | -6/Cetus | Acquired a Cetus Manufacturing Module code from A7 22544 | -6/Cetus | Spotted Cetus Guard 22545 | -6/Cetus | Spotted Cetus Guard 22550 | -6/Cetus | Spotted Cetus Guard 22552 | -6/Cetus | Destroyed Cetus Guard 22556 | -6/Cetus | Spotted Cetus Guard 22556 | -6/Cetus | Allies destroyed Cetus Guard 22563 | -6/Cetus | Allies destroyed Cetus Guard 22564 | -6/Cetus | Allies destroyed Cetus Guard 22636 | -6/Cetus | Started Cetus Manufacturing Module 22652 | -6/Cetus | Escorted A7 to Cetus Mainframe 22661 | -6/Cetus | Manufactured an Enhanced Grunt 22686 | -6/Cetus | Manufactured an Enhanced Grunt 22711 | -6/Cetus | Manufactured an Enhanced Grunt 22736 | -6/Cetus | Manufactured an Enhanced Grunt 22761 | -6/Cetus | Manufactured an Enhanced Grunt 23039 | -6/Cetus | Discovered new exit (range 16) 23065 | -6/Cetus | Spotted Cetus Guard 23065 | -6/Cetus | Spotted Cetus Guard 23069 | -6/Cetus | Spotted Cetus Guard 23070 | -6/Cetus | Destroyed Cetus Guard 23073 | -6/Cetus | Spotted Cetus Guard 23082 | -6/Cetus | Allies destroyed Cetus Guard 23084 | -6/Cetus | Allies destroyed Cetus Guard 23088 | -6/Cetus | Destroyed Cetus Guard 23097 | -6/Cetus | Discovered exit to Factory (range 16) 23112 | -6/Cetus | Met Revision 17 23274 | -6/Cetus | Security sweep announced 23277 | -6/Cetus | Attached CPS modules to A7. 23308 | -6/Cetus | Murdered A7 23312 | -6/Cetus | Extracted ID and sensor layout for unrecognized location from A7's data core 23321 | -6/Cetus | Found Prototype Protection 23321 | -6/Cetus | Identified Med. Regenerative Plating 23336 | -6/Cetus | Lost 4 allies 23356 | -6/Cetus | Entered Archives 23356 | -6/Archives | Accompanied by 9 allies 23385 | -6/Archives | Lost 4 allies 23418 | -6/Archives | Discovered new exit (range 16) 23455 | -6/Archives | Entered Hub_04(d) 23455 | -6/Hub_04(d) | Accompanied by 9 allies 23805 | -6/Hub_04(d) | First assault squad dispatched 23973 | -6/Hub_04(d) | Identified exit to Garrison 24021 | -6/Hub_04(d) | Garrison activated, responded to threat 24071 | -6/Hub_04(d) | Build established: Scavenger-Tank 24263 | -6/Hub_04(d) | Spotted B-75 Beast 24284 | -6/Hub_04(d) | Destroyed B-75 Beast 24612 | -6/Hub_04(d) | Network Hub disabled 24612 | -6/Hub_04(d) | Network Hub disabled 24613 | -6/Hub_04(d) | Network Hub disabled 24641 | -6/Hub_04(d) | Spotted Lightning 24641 | -6/Hub_04(d) | Spotted Lightning 24641 | -6/Hub_04(d) | Spotted Lightning 24661 | -6/Hub_04(d) | Destroyed Lightning 24665 | -6/Hub_04(d) | Destroyed Lightning 24689 | -6/Hub_04(d) | Destroyed Lightning 24699 | -6/Hub_04(d) | Found Prototype Device 24699 | -6/Hub_04(d) | Identified Exp. EM Shield 24703 | -6/Hub_04(d) | Found Prototype Processor 24703 | -6/Hub_04(d) | Identified Exp. Targeting Computer 24706 | -6/Hub_04(d) | Found Exp. Targeting Computer 24722 | -6/Hub_04(d) | Found Prototype Energy Cannon 24726 | -6/Hub_04(d) | Found Prototype Device 24726 | -6/Hub_04(d) | Identified Exp. Phase Shifter 25108 | -6/Hub_04(d) | Entered Garrison 25175 | -6/Garrison | Triggered checkpoint 25235 | -6/Garrison | Expanded RIF knowledge: Coupler Efficiency 25288 | -6/Garrison | Build established: Scavenger-Gunner 25420 | -6/Garrison | Triggered checkpoint 25461 | -6/Garrison | Core integrity fell below 50% 25486 | -6/Garrison | Triggered checkpoint 25612 | -6/Garrison | Discovered exit to Factory (range 10) 25666 | -6/Garrison | Triggered checkpoint 25701 | -6/Garrison | Garrison Relay disabled 25746 | -6/Garrison | Spotted B-75 Beast 25746 | -6/Garrison | Spotted B-75 Beast 25764 | -6/Garrison | Entered Factory 25764 | -5/Factory | Evolved 2 slots: Propulsion x2 26361 | -5/Factory | Spotted B-75 Beast 26396 | -5/Factory | Destroyed B-75 Beast 26420 | -5/Factory | Identified EMDS 26468 | -5/Factory | Repaired Centrium Heavy Treads 26512 | -5/Factory | Identified exit to Garrison 26595 | -5/Factory | System corruption reached 10% 26611 | -5/Factory | Repaired Broken Centrium Heavy Treads? 26732 | -5/Factory | Entered Garrison 26776 | -5/Garrison | Triggered checkpoint 26802 | -5/Garrison | Destroyed 7 combat bots 26944 | -5/Garrison | Triggered checkpoint 26951 | -5/Garrison | Triggered checkpoint 26951 | -5/Garrison | Triggered checkpoint 26993 | -5/Garrison | Destroyed 10 combat bots 27017 | -5/Garrison | Expanded RIF knowledge: Alert ID Control 27069 | -5/Garrison | Discovered new exit (range 10) 27160 | -5/Garrison | Triggered checkpoint 27291 | -5/Garrison | Entered Factory 27291 | -5/Factory | Accompanied by 1 ally 27591 | -5/Factory | First assault squad dispatched 27743 | -5/Factory | Garrison activated, responded to threat 27766 | -5/Factory | Repaired Adv. KE Penetrator 27851 | -5/Factory | Identified exit to Garrison 27861 | -5/Factory | Entered Garrison 27865 | -5/Garrison | Triggered checkpoint 27909 | -5/Garrison | Triggered checkpoint 27930 | -5/Garrison | Garrison Relay disabled 28044 | -5/Garrison | Spotted B-75 Beast 28061 | -5/Garrison | Lost 3 parts (1p1u1w) 28061 | -5/Garrison | Destroyed B-75 Beast 28101 | -5/Garrison | Destroyed 19 combat bots 28167 | -5/Garrison | Discovered new exit (range 9) 28209 | -5/Garrison | Rewired B-90 Cyclops 28215 | -5/Garrison | Spotted B-90 Cyclops 28272 | -5/Garrison | Found embedded Infiltrators 28369 | -5/Garrison | Triggered checkpoint 28407 | -5/Garrison | Triggered checkpoint 28458 | -5/Garrison | Expanded RIF knowledge: Threat Obfuscation 28487 | -5/Garrison | Discovered new exit (range 10) 28617 | -5/Garrison | Garrison Relay disabled 28738 | -5/Garrison | Rescued a captive Derelict 28743 | -5/Garrison | Rescued a captive Derelict 28824 | -5/Garrison | Spotted Striker 28826 | -5/Garrison | Spotted Striker 28843 | -5/Garrison | Destroyed Striker 28853 | -5/Garrison | Destroyed Striker 28926 | -5/Garrison | Discovered new exit (range 12) 28949 | -5/Garrison | Triggered checkpoint 28979 | -5/Garrison | Discovered new exit (range 5) 29032 | -5/Garrison | Entered Factory 29032 | -5/Factory | Accompanied by 3 allies 29137 | -5/Factory | Build established: Scavenger-Tank 29153 | -5/Factory | Fabricated CPS Tube? 29218 | -5/Factory | Identified exit to Factory 29266 | -5/Factory | Found Prototype Launcher 29266 | -5/Factory | Identified Mni. Smartbomb Launcher 29402 | -5/Factory | Discovered new exit (range 150) 29664 | -5/Factory | Identified exit to Upper Caves 29822 | -5/Factory | Core integrity fell below 50% 30299 | -5/Factory | Entered Upper Caves 30362 | -5/Upper Caves | Attracted the attention of an 0b10 outpost 30745 | -5/Upper Caves | Attracted the attention of an 0b10 checkpoint 30963 | -5/Upper Caves | Encountered a Warlord checkpoint 31094 | -5/Upper Caves | Learned Factory terminal intel 31175 | -5/Upper Caves | Learned Factory interactive machine intel 31191 | -5/Upper Caves | Discovered new exit (range 14) 31250 | -5/Upper Caves | Entered an active Warlord outpost 31256 | -5/Upper Caves | A Commander dispatched an escort 31273 | -5/Upper Caves | Learned location of 1 exit from Factory 31273 | -5/Upper Caves | Learned Extension stockpile data 31623 | -5/Upper Caves | Entered another Upper Caves area 31623 | -5/Upper Caves | Accompanied by 2 allies 31624 | -5/Upper Caves | Commander's escort returned to base 31624 | -5/Upper Caves | Commander's escort returned to base 31732 | -5/Upper Caves | Learned 4 Factory zone layouts 31746 | -5/Upper Caves | Ambushed by wild Derelicts 32021 | -5/Upper Caves | Lost 3 parts (1n2w) 32042 | -5/Upper Caves | Attacked by a faux Warlord 32309 | -5/Upper Caves | Discovered new exit (range 12) 32458 | -5/Upper Caves | Entered Zhirov 32458 | -5/Zhirov | Discovered new exit (range 3) 32493 | -5/Zhirov | Met Zhirov 32529 | -5/Zhirov | Learned location of Testing (-3) 32539 | -5/Zhirov | Zhirov requested help retrieving the SGEMP Prototype 32563 | -5/Zhirov | Found Alien Artifact 32563 | -5/Zhirov | Identified Integrated Reactor 32563 | -5/Zhirov | Installed Integrated Reactor, increased core energy generation (+10) 32585 | -5/Zhirov | Found Alien Artifact 32727 | -5/Zhirov | Entered Proximity Caves 33348 | -4/Proximity Caves | Discovered exit to Factory (range 3) 33456 | -4/Proximity Caves | Entered Factory 33456 | -4/Factory | Evolved 2 slots: Utility x2 33457 | -4/Factory | Identified exit to Research 33459 | -4/Factory | Loaded intel: 54 interactive machine locations 33460 | -4/Factory | Loaded intel: 26 terminal locations 33814 | -4/Factory | Fabricated Assault Drone Bay? 34077 | -4/Factory | Found Gamma Bomb Array 34381 | -4/Factory | Spotted B-86 Titan 34391 | -4/Factory | Assembled infested ambush trap array 34687 | -4/Factory | Repaired Centrium Heavy Treads 35078 | -4/Factory | Discovered new exit (range 10) 35301 | -4/Factory | Identified exit to Armory 35302 | -4/Factory | Entered Armory 35303 | -4/Armory | Met VL-GR5, who suggested a friendly competition 35631 | -4/Armory | Build established: Scavenger-Gunner 36030 | -4/Armory | Discovered exit to Research (range 3) 36302 | -4/Armory | First assault squad dispatched 36341 | -4/Armory | Unchained authorized (CL-0N3) 36442 | -4/Armory | Build established: Commander-Gunner 36693 | -4/Armory | X-82 Rainmaker reconstituted as Alpha 7 36697 | -4/Armory | Spotted Alpha 7 36730 | -4/Armory | Destroyed Alpha 7 36730 | -4/Armory | Alpha 7 reconstituted as CL-0N3 36802 | -4/Armory | Build established: Scavenger-Gunner 36955 | -4/Armory | S-27 Virus reconstituted as H-81 Overseer 36971 | -4/Armory | H-81 Overseer reconstituted as CL-0N3 37031 | -4/Armory | Lost 4 allies 37069 | -4/Armory | Lost 11 parts (1p4n2u4w) 37204 | -4/Armory | Destroyed Armor Guard 37271 | -4/Armory | Spotted Armor Guard 37274 | -4/Armory | Destroyed Armor Guard 37313 | -4/Armory | Found Prototype Device 37313 | -4/Armory | Identified Exp. Weapon Cycler 37315 | -4/Armory | W-44 Eye reconstituted as Armor Guard 37321 | -4/Armory | Spotted Armor Guard 37322 | -4/Armory | Destroyed Armor Guard 37322 | -4/Armory | Armor Guard reconstituted as CL-0N3 37349 | -4/Armory | Found Exp. Weapon Cycler 37408 | -4/Armory | Spotted Armor Guard 37408 | -4/Armory | Spotted Armor Guard 37415 | -4/Armory | Core integrity fell below 50% 37418 | -4/Armory | Destroyed Armor Guard 37471 | -4/Armory | Destroyed Armor Guard 37484 | -4/Armory | Lost 3 parts (3w) 37486 | -4/Armory | Found Exp. Weapon Cycler 37538 | -4/Armory | Breached Obliterator storage 37548 | -4/Armory | Found Disassembled Obliterator 37582 | -4/Armory | Found PL-3XN's Ring of Power 37624 | -4/Armory | Identified Transdimensional Reconstructor 37624 | -4/Armory | Warped through subspace to slip node 37624 | -4/Armory | Discovered new exit (range 1) 37667 | -4/Armory | Entered Lab 37670 | -4/Lab | Discovered exit to Research (range 9) 37698 | -4/Lab | Hidden lab's door opened automatically 37698 | -4/Lab | Sensor layout match revealed 37699 | -4/Lab | Gained access to the hidden lab's interior 38105 | -4/Lab | Found Alien Artifact 38105 | -4/Lab | Identified Core Expander 38105 | -4/Lab | Installed Core Expander, added new Propulsion slot 38116 | -4/Lab | Found Integrated Reactor 38116 | -4/Lab | Installed Integrated Reactor, increased core energy generation (+10) 38126 | -4/Lab | Found Transdimensional Reconstructor 38165 | -4/Lab | Found Prototype Hackware 38169 | -4/Lab | Found Med. Regenerative Plating 38174 | -4/Lab | Found Prototype Energy Cannon 38179 | -4/Lab | Found Prototype Energy Cannon 38225 | -4/Lab | Found Prototype Special Weapon 38295 | -4/Lab | Found Alien Artifact 38319 | -4/Lab | Entered Research 38319 | -3/Research | Evolved 2 slots: Utility x1, Weapon x1 38536 | -3/Research | Revision forces began assault on 0b10 38538 | -3/Research | Met up with Revision 17++ 38562 | -3/Research | Spotted B-86 Titan 38570 | -3/Research | Attached CPS modules to B-86 Titan. 38752 | -3/Research | Identified Gui. Remote Datajack 38753 | -3/Research | Identified Warp Cannon (x2) 38758 | -3/Research | Found Gamma Bomb Array 38968 | -3/Research | Identified Core Reset Matrix 38968 | -3/Research | Used Core Reset Matrix 39036 | -3/Research | Research terminal network offline 39051 | -3/Research | Fabricated Hvy. Shield Leg? 39255 | -3/Research | Build established: Scavenger-Tank 39311 | -3/Research | Found Prototype Launcher 39311 | -3/Research | Identified Hellfire Missile Launcher 39729 | -3/Research | Discovered new exit (range 8) 39967 | -3/Research | Central database locked down 39967 | -3/Research | Identified Deep Network Scanner 40018 | -3/Research | Spotted Striker 40579 | -3/Research | Spotted B-86 Titan 40593 | -3/Research | Spotted Striker 40690 | -3/Research | Spotted Striker 40710 | -3/Research | Destroyed Striker 40743 | -3/Research | Spotted Striker 40752 | -3/Research | Spotted Executioner 40760 | -3/Research | Destroyed Executioner 40777 | -3/Research | Spotted Executioner 40781 | -3/Research | Spotted Striker 40786 | -3/Research | Found Prototype Processor 40786 | -3/Research | Identified Exp. Core Analyzer 40787 | -3/Research | Warped through subspace 40789 | -3/Research | Destroyed 7 combat bots 40854 | -3/Research | Spotted Striker 40855 | -3/Research | Destroyed Striker 40909 | -3/Research | Spotted Striker 40915 | -3/Research | Spotted Striker 40918 | -3/Research | Spotted Striker 40934 | -3/Research | Spotted Striker 40937 | -3/Research | Spotted Striker 40942 | -3/Research | Destroyed Striker 40945 | -3/Research | Core integrity fell below 50% 40952 | -3/Research | Emitted hypermatrix ping 40952 | -3/Research | Core integrity fell below 20% 40953 | -3/Research | Destroyed Striker 40957 | -3/Research | Assembled emerged from beneath the floor 40958 | -3/Research | Destroyed by Striker with Plasma Lance Last Messages --------------- 40955_ Bomb Drone destroyed. 40955_ Striker destroyed. 40955_ Bomb Drone Bay destroyed. 40956_ Power failure, Rnf. Quantum Reactor shutdown. 40956_ The unstable cave ceiling collapses. 40956_ Rnf. Quantum Reactor destroyed. 40957_ Assembled emerge from beneath the floor. 40957_ Overheating: Core damaged (-182). 40957_ as-81151 sneak attacks. 40957_ Slug penetrates as-47192. 40957_ as-92534 destroyed. 40957_ Destroyed Unknown Hover Unit. 40957_ as-03609 destroyed. 40957_ Hellfire Missile Launcher destroyed. 40957_ Destroyed Hellfire Missile Launcher. 40957_ as-81151 destroyed. 40957_ Destroyed Unknown Special Weapon. 40957_ as-04589 destroyed. 40958_ The unstable cave ceiling collapses. Map ----- +----------------------------------------------------+ | ?????????????????????????????????????????????????? | | ?????????????????????????????????????????????????? | | ??????????????????????????????????????????# ???? | | ??????????????????????????????????????????# ???? | | ??????????????????????????????????????????# ??? | | ?????????????????????????????# ??????????# ### | | ?????????????????????????????# ??????????+ | | ?????????????????????????????# ??????????# | | ?????????????????????????????# ??????????# | | ?????????????????????????????# #?????????# | | ?????????????????????????????# #????????????##### | | ?????????????????????????????# #????###?????????# | | ?????????????????????????????# ###?# ???######## | | ??????????????????# ##"#### ="##### | | ????????????????? %* !=* = ! | | ????????????????? [ ! ![ ! | | ????????????????????????#####; =[ ##### | | ??????????????????????###; # # # ????##+##### | | ????????????????????### # [ *[ ]??? ??? | | ???????????????????## ] ? ? | | ???????????# ?????## # """ | | ???????????# ??# # [ # !! """ | | ???????????? # ## !! """ | | ????????????????## # ## | | ????????????????# a # ## =? | | ????????????????# # @K #?# """ """ ? | | ????????????????# a #?# """S""" ? | | ????????????????## ]! ## ? | | ?????????????????## ! ## ??? ? ? | | ??????????????????# * = ##???? #???##? | | ??????????????????## # ##?????#??????? | | ???????????????????#### ## "???????????? | | ??????????????????????#####?### ! ##??????????? | | ??????????????????????????????? #???????????? | | ???????????????????????????????? #???????????? | | ????????????????????????????????? ????????????? | | ????????????????????????????????? ????????????? | | ??????????????????????????????????#??????????????? | | ?????????????????????????????????????????????????? | | ?????????????????????????????????????????????????? | | ?????????????????????????????????????????????????? | | ?????????????????????????????????????????????????? | | ?????????????????????????????????????????????????? | | ?????????????????????????????????????????????????? | | ?????????????????????????????????????????????????? | | ?????????????????????????????????????????????????? | | ?????????????????????????????????????????????????? | | ?????????????????????????????????????????????????? | | ?????????????????????????????????????????????????? | | ?????????????????????????????????????????????????? | +----------------------------------------------------+ Best States ------------- Heat Dissipation 102 Coolant Potential 65 Energy Generation 65 Energy Capacity 600 Matter Stores 300 Matter Capacity 600 Sight Range 23 Robot Scan Range 20 Terrain Scan Density 210 Base Temperature (-) 200 Armor Coverage 450 Resistance: EM 75 Core Shielding 20 Weapon Shielding 90 Weapon Cycling 30 Phase Shifting 20 Evasion (%) 60 Targeting Accuracy 24 Core Analysis 11 Recoil Reduction 7 Particle Charging 30 Salvage Targeting 1 Relay Coupler Types 1 Relay Coupler Value 27 Authchip Count 1 Item Schematics ----------------- None Robot Schematics ------------------ None Fabricated ------------ CPS Tube | x1 | -5/Factory Assault Drone Bay | x1 | -4/Factory | Authchip Hvy. Shield Leg | x1 | -3/Research | Preloaded Repaired ---------- Hcp. Storage Unit | 97% | -9/Materials Centrium Heavy Treads | 2% | -5/Factory Centrium Heavy Treads | 9% | -5/Factory | Broken Adv. KE Penetrator | 1% | -5/Factory Centrium Heavy Treads | 36% | -4/Factory Studied --------- Hyp. Railgun | -3/Research | Hacked Alien Tech Used ----------------- Integrated Reactor Transdimensional Reconstructor Core Expander Core Reset Matrix Achievements -------------- None Challenges ------------ None Game ------ Seed BeamLongswordPit Manual? 0 Play Time 04:22:34 Cumulative 494.7 hours Start 2025.11.02 @ 03:50:24 End 2025.11.03 @ 01:23:55 Sessions 5 Manual Loads 0 Difficulty Rogue Special Mode None Game No. 261 Rogue 261 Adventurer 0 Explorer 0 Win Type - Total 22 Types 13/1/5/1/0/0/0/1/1/0 Lore% 93 Gallery% 87 Achievement% 79 Wizard Run 0 Options --------- Layout 2 ASCII 0 Keyboard 1 Movement Vi Keybinds 0 Fullscreen 1 Font 28/Cog Map View 50x52 Zoom Use 0% Tactical HUD 1 Map Filters NONE Filters NONE Steam 1 RUN: 800ea575-ec2f-4901-b14f-4bf513eea252